Workbook

Sheet Display
F2: CQG Invesco S&P 500® Equal Weight Technology ETF Performance | AB2: =RTD("cqg.rtd", ,"SystemInfo", "Linetime") -> 44194.36528
B5: Exchange Traded Funds Performance | S5: Top 15 Performing Companies
B6: Symbol | C6: Description | H6: Last | I6: NC | J6: %NC | K6: NC/ATR | L6: Open | M6: High | N6: Low | O6: Volume | Q6: Ratio
B7: RYT | C7: =RTD("cqg.rtd", ,"ContractData",B7, "LongDescription",, "T") -> Invesco S&P 500 Eq Wt Technology ETF | H7: =RTD("cqg.rtd", ,"ContractData",B7, "LastTradeToday",, "T") -> 252.24 | I7: =RTD("cqg.rtd", ,"ContractData",B7, "NetLastTradeToday",, "T") -> 0.3 | J7: =RTD("cqg.rtd", ,"ContractData",B7, "PerCentNetLastTrade",, "T")/100 -> 0.001190759705 | K7: =I7/RTD("cqg.rtd",,"StudyData",B7, "ATR", "MaType=Sim,Period=10", "ATR","D","-1","ALL",,,"FALSE","T")/100 -> 0.001160990712 | L7: =RTD("cqg.rtd", ,"ContractData",B7, "OPen",, "T") -> 252.79 | M7: =RTD("cqg.rtd", ,"ContractData", B7, "HIgh",, "T") -> 252.79 | N7: =RTD("cqg.rtd", ,"ContractData",B7, "LOw",, "T") -> 252.07 | O7: =RTD("cqg.rtd", ,"ContractData",B7, "T_CVol",, "T") -> 2921 | Q7: =IFERROR(O7/RTD("cqg.rtd",,"StudyData",B7, "MA", "InputChoice=Vol,MAType=Sim,Period=21", "MA","D","-1","all",,,,"T"),"") -> 0.07255357451
B8: S.AAPL | C8: =RTD("cqg.rtd", ,"ContractData",B8, "LongDescription",, "T") -> Apple Inc | H8: =RTD("cqg.rtd", ,"ContractData",B8, "LastTradeToday",, "T") -> 137.65 | I8: =RTD("cqg.rtd", ,"ContractData",B8, "NetLastTradeToday",, "T") -> 0.96 | J8: =RTD("cqg.rtd", ,"ContractData",B8, "PerCentNetLastTrade",, "T")/100 -> 0.007023191162 | K8: =I8/RTD("cqg.rtd",,"StudyData",B8, "ATR", "MaType=Sim,Period=10", "ATR","D","-1","ALL",,,"FALSE","T")/100 -> 0.002738944365 | L8: =RTD("cqg.rtd", ,"ContractData",B8, "OPen",, "T") -> 138.05 | M8: =RTD("cqg.rtd", ,"ContractData", B8, "HIgh",, "T") -> 138.78 | N8: =RTD("cqg.rtd", ,"ContractData",B8, "LOw",, "T") -> 137.26 | O8: =RTD("cqg.rtd", ,"ContractData",B8, "T_CVol",, "T") -> 17300424 | Q8: =IFERROR(O8/RTD("cqg.rtd",,"StudyData",B8, "MA", "InputChoice=Vol,MAType=Sim,Period=21", "MA","D","-1","all",,,,"T"),"") -> 0.163447928
B9: XLF | C9: =RTD("cqg.rtd", ,"ContractData",B9, "LongDescription",, "T") -> Financial Select Sector SPDR | H9: =RTD("cqg.rtd", ,"ContractData",B9, "LastTradeToday",, "T") -> 29.12 | I9: =RTD("cqg.rtd", ,"ContractData",B9, "NetLastTradeToday",, "T") -> 0.03 | J9: =RTD("cqg.rtd", ,"ContractData",B9, "PerCentNetLastTrade",, "T")/100 -> 0.001031282228 | K9: =I9/RTD("cqg.rtd",,"StudyData",B9, "ATR", "MaType=Sim,Period=10", "ATR","D","-1","ALL",,,"FALSE","T")/100 -> 0.0006833712984 | L9: =RTD("cqg.rtd", ,"ContractData",B9, "OPen",, "T") -> 29.21 | M9: =RTD("cqg.rtd", ,"ContractData", B9, "HIgh",, "T") -> 29.22 | N9: =RTD("cqg.rtd", ,"ContractData",B9, "LOw",, "T") -> 29.06 | O9: =RTD("cqg.rtd", ,"ContractData",B9, "T_CVol",, "T") -> 1736310 | Q9: =IFERROR(O9/RTD("cqg.rtd",,"StudyData",B9, "MA", "InputChoice=Vol,MAType=Sim,Period=21", "MA","D","-1","all",,,,"T"),"") -> 0.03777169453
B10: S.GDX | C10: =RTD("cqg.rtd", ,"ContractData",B10, "LongDescription",, "T") -> Market Vectors Gold Miners ETF | H10: =RTD("cqg.rtd", ,"ContractData",B10, "LastTradeToday",, "T") -> 35.88 | I10: =RTD("cqg.rtd", ,"ContractData",B10, "NetLastTradeToday",, "T") -> 0.2 | J10: =RTD("cqg.rtd", ,"ContractData",B10, "PerCentNetLastTrade",, "T")/100 -> 0.005603810591 | K10: =I10/RTD("cqg.rtd",,"StudyData",B10, "ATR", "MaType=Sim,Period=10", "ATR","D","-1","ALL",,,"FALSE","T")/100 -> 0.001960784314 | L10: =RTD("cqg.rtd", ,"ContractData",B10, "OPen",, "T") -> 35.9 | M10: =RTD("cqg.rtd", ,"ContractData", B10, "HIgh",, "T") -> 36.04 | N10: =RTD("cqg.rtd", ,"ContractData",B10, "LOw",, "T") -> 35.77 | O10: =RTD("cqg.rtd", ,"ContractData",B10, "T_CVol",, "T") -> 1697573 | Q10: =IFERROR(O10/RTD("cqg.rtd",,"StudyData",B10, "MA", "InputChoice=Vol,MAType=Sim,Period=21", "MA","D","-1","all",,,,"T"),"") -> 0.07520822574
B11: S.TSLA | C11: =RTD("cqg.rtd", ,"ContractData",B11, "LongDescription",, "T") -> Tesla, Inc. | H11: =RTD("cqg.rtd", ,"ContractData",B11, "LastTradeToday",, "T") -> 668 | I11: =RTD("cqg.rtd", ,"ContractData",B11, "NetLastTradeToday",, "T") -> 4.31 | J11: =RTD("cqg.rtd", ,"ContractData",B11, "PerCentNetLastTrade",, "T")/100 -> 0.006493995691 | K11: =I11/RTD("cqg.rtd",,"StudyData",B11, "ATR", "MaType=Sim,Period=10", "ATR","D","-1","ALL",,,"FALSE","T")/100 -> 0.001234709371 | L11: =RTD("cqg.rtd", ,"ContractData",B11, "OPen",, "T") -> 661 | M11: =RTD("cqg.rtd", ,"ContractData", B11, "HIgh",, "T") -> 668.8 | N11: =RTD("cqg.rtd", ,"ContractData",B11, "LOw",, "T") -> 657.46 | O11: =RTD("cqg.rtd", ,"ContractData",B11, "T_CVol",, "T") -> 3062819 | Q11: =IFERROR(O11/RTD("cqg.rtd",,"StudyData",B11, "MA", "InputChoice=Vol,MAType=Sim,Period=21", "MA","D","-1","all",,,,"T"),"") -> 0.05441186695
B12: IWF | C12: =RTD("cqg.rtd", ,"ContractData",B12, "LongDescription",, "T") -> iShares Russell 1000 Growth ETF | H12: =RTD("cqg.rtd", ,"ContractData",B12, "LastTradeToday",, "T") -> 242.56 | I12: =RTD("cqg.rtd", ,"ContractData",B12, "NetLastTradeToday",, "T") -> 1.31 | J12: =RTD("cqg.rtd", ,"ContractData",B12, "PerCentNetLastTrade",, "T")/100 -> 0.005430051813 | K12: =I12/RTD("cqg.rtd",,"StudyData",B12, "ATR", "MaType=Sim,Period=10", "ATR","D","-1","ALL",,,"FALSE","T")/100 -> 0.005085403727 | L12: =RTD("cqg.rtd", ,"ContractData",B12, "OPen",, "T") -> 242.61 | M12: =RTD("cqg.rtd", ,"ContractData", B12, "HIgh",, "T") -> 242.82 | N12: =RTD("cqg.rtd", ,"ContractData",B12, "LOw",, "T") -> 242.28 | O12: =RTD("cqg.rtd", ,"ContractData",B12, "T_CVol",, "T") -> 59949 | Q12: =IFERROR(O12/RTD("cqg.rtd",,"StudyData",B12, "MA", "InputChoice=Vol,MAType=Sim,Period=21", "MA","D","-1","all",,,,"T"),"") -> 0.04700715733
B13: IWO | C13: =RTD("cqg.rtd", ,"ContractData",B13, "LongDescription",, "T") -> iShares Russell 2000 Growth ETF | H13: =RTD("cqg.rtd", ,"ContractData",B13, "LastTradeToday",, "T") -> 288.98 | I13: =RTD("cqg.rtd", ,"ContractData",B13, "NetLastTradeToday",, "T") -> -2.45 | J13: =RTD("cqg.rtd", ,"ContractData",B13, "PerCentNetLastTrade",, "T")/100 -> -0.008406821535 | K13: =I13/RTD("cqg.rtd",,"StudyData",B13, "ATR", "MaType=Sim,Period=10", "ATR","D","-1","ALL",,,"FALSE","T")/100 -> -0.004725168756 | L13: =RTD("cqg.rtd", ,"ContractData",B13, "OPen",, "T") -> 292.13 | M13: =RTD("cqg.rtd", ,"ContractData", B13, "HIgh",, "T") -> 292.57 | N13: =RTD("cqg.rtd", ,"ContractData",B13, "LOw",, "T") -> 288.38 | O13: =RTD("cqg.rtd", ,"ContractData",B13, "T_CVol",, "T") -> 45904 | Q13: =IFERROR(O13/RTD("cqg.rtd",,"StudyData",B13, "MA", "InputChoice=Vol,MAType=Sim,Period=21", "MA","D","-1","all",,,,"T"),"") -> 0.09443464108
B14: DJI | C14: =RTD("cqg.rtd", ,"ContractData",B14, "LongDescription",, "T") -> DJ Industrial Average | H14: =RTD("cqg.rtd", ,"ContractData",B14, "LastTradeToday",, "T") -> 30532.8 | I14: =RTD("cqg.rtd", ,"ContractData",B14, "NetLastTradeToday",, "T") -> 128.9 | J14: =RTD("cqg.rtd", ,"ContractData",B14, "PerCentNetLastTrade",, "T")/100 -> 0.004239587684 | K14: =I14/RTD("cqg.rtd",,"StudyData",B14, "ATR", "MaType=Sim,Period=10", "ATR","D","-1","ALL",,,"FALSE","T")/100 -> 0.004321587823 | L14: =RTD("cqg.rtd", ,"ContractData",B14, "OPen",, "T") -> 30492 | M14: =RTD("cqg.rtd", ,"ContractData", B14, "HIgh",, "T") -> 30588.7 | N14: =RTD("cqg.rtd", ,"ContractData",B14, "LOw",, "T") -> 30492 | O14: =RTD("cqg.rtd", ,"ContractData",B14, "T_CVol",, "T") -> 0 | Q14: =IFERROR(O14/RTD("cqg.rtd",,"StudyData",B14, "MA", "InputChoice=Vol,MAType=Sim,Period=21", "MA","D","-1","all",,,,"T"),"") -> 0
B15: RSP | C15: =RTD("cqg.rtd", ,"ContractData",B15, "LongDescription",, "T") -> Invesco S&P 500 Equal Weight ETF | H15: =RTD("cqg.rtd", ,"ContractData",B15, "LastTradeToday",, "T") -> 126.67 | I15: =RTD("cqg.rtd", ,"ContractData",B15, "NetLastTradeToday",, "T") -> 0.21 | J15: =RTD("cqg.rtd", ,"ContractData",B15, "PerCentNetLastTrade",, "T")/100 -> 0.001660604144 | K15: =I15/RTD("cqg.rtd",,"StudyData",B15, "ATR", "MaType=Sim,Period=10", "ATR","D","-1","ALL",,,"FALSE","T")/100 -> 0.001387970919 | L15: =RTD("cqg.rtd", ,"ContractData",B15, "OPen",, "T") -> 126.94 | M15: =RTD("cqg.rtd", ,"ContractData", B15, "HIgh",, "T") -> 127.11 | N15: =RTD("cqg.rtd", ,"ContractData",B15, "LOw",, "T") -> 126.62 | O15: =RTD("cqg.rtd", ,"ContractData",B15, "T_CVol",, "T") -> 65703 | Q15: =IFERROR(O15/RTD("cqg.rtd",,"StudyData",B15, "MA", "InputChoice=Vol,MAType=Sim,Period=21", "MA","D","-1","all",,,,"T"),"") -> 0.02902514426
B16: SPY | C16: =RTD("cqg.rtd", ,"ContractData",B16, "LongDescription",, "T") -> SPDR S&P 500 | H16: =RTD("cqg.rtd", ,"ContractData",B16, "LastTradeToday",, "T") -> 373.69 | I16: =RTD("cqg.rtd", ,"ContractData",B16, "NetLastTradeToday",, "T") -> 1.52 | J16: =RTD("cqg.rtd", ,"ContractData",B16, "PerCentNetLastTrade",, "T")/100 -> 0.00408415509 | K16: =I16/RTD("cqg.rtd",,"StudyData",B16, "ATR", "MaType=Sim,Period=10", "ATR","D","-1","ALL",,,"FALSE","T")/100 -> 0.003256212511 | L16: =RTD("cqg.rtd", ,"ContractData",B16, "OPen",, "T") -> 373.81 | M16: =RTD("cqg.rtd", ,"ContractData", B16, "HIgh",, "T") -> 374 | N16: =RTD("cqg.rtd", ,"ContractData",B16, "LOw",, "T") -> 373.48 | O16: =RTD("cqg.rtd", ,"ContractData",B16, "T_CVol",, "T") -> 2896741 | Q16: =IFERROR(O16/RTD("cqg.rtd",,"StudyData",B16, "MA", "InputChoice=Vol,MAType=Sim,Period=21", "MA","D","-1","all",,,,"T"),"") -> 0.04766652199
C17: Top 15 Description | H17: Last | I17: NC | J17: %NC | K17: NC/ATR | L17: Open | M17: High | N17: Low | O17: Volume | Q17: Ratio | R17: News
A18: =TRIM(RYT!O1) -> S.US.NOW | B18: =HYPERLINK(R18,$R$17) -> News | C18: =RTD("cqg.rtd", ,"ContractData",A18, "LongDescription",, "T")&" ("&RIGHT(A18,LEN(A18)-5)&")" -> ServiceNow, Inc. (NOW) | H18: =RTD("cqg.rtd", ,"ContractData",A18, "LastTradeToday",, "T") -> 550.74 | I18: =RTD("cqg.rtd", ,"ContractData",A18, "NetLastTradeToday",, "T") -> 7 | J18: =RTD("cqg.rtd", ,"ContractData",A18, "PerCentNetLastTrade",, "T")/100 -> 0.01287379998 | K18: =I18/RTD("cqg.rtd",,"StudyData",A18, "ATR", "MaType=Sim,Period=10", "ATR","D","-1","ALL",,,"FALSE","T")/100 -> 0.004641909814 | L18: =RTD("cqg.rtd", ,"ContractData",A18, "OPen",, "T") -> 550.22 | M18: =RTD("cqg.rtd", ,"ContractData", A18, "HIgh",, "T") -> 551.42 | N18: =RTD("cqg.rtd", ,"ContractData",A18, "LOw",, "T") -> 547.25 | O18: =RTD("cqg.rtd", ,"ContractData",A18, "T_CVol",, "T") -> 57965 | Q18: =IFERROR(O18/RTD("cqg.rtd",,"StudyData",A18, "MA", "InputChoice=Vol,MAType=Sim,Period=21", "MA","D","-1","all",,,,"T"),"") -> 0.04701460094 | R18: =RYT!Q1 -> https://finance.yahoo.com/quote/NOW
A19: =TRIM(RYT!O2) -> S.US.FIS | B19: =HYPERLINK(R19,$R$17) -> News | C19: =RTD("cqg.rtd", ,"ContractData",A19, "LongDescription",, "T")&" ("&RIGHT(A19,LEN(A19)-5)&")" -> Fidelity National Info Services (FIS) | H19: =RTD("cqg.rtd", ,"ContractData",A19, "LastTradeToday",, "T") -> 142 | I19: =RTD("cqg.rtd", ,"ContractData",A19, "NetLastTradeToday",, "T") -> 1.72 | J19: =RTD("cqg.rtd", ,"ContractData",A19, "PerCentNetLastTrade",, "T")/100 -> 0.0122611919 | K19: =I19/RTD("cqg.rtd",,"StudyData",A19, "ATR", "MaType=Sim,Period=10", "ATR","D","-1","ALL",,,"FALSE","T")/100 -> 0.004056603774 | L19: =RTD("cqg.rtd", ,"ContractData",A19, "OPen",, "T") -> 141.71 | M19: =RTD("cqg.rtd", ,"ContractData", A19, "HIgh",, "T") -> 142.04 | N19: =RTD("cqg.rtd", ,"ContractData",A19, "LOw",, "T") -> 141.12 | O19: =RTD("cqg.rtd", ,"ContractData",A19, "T_CVol",, "T") -> 159803 | Q19: =IFERROR(O19/RTD("cqg.rtd",,"StudyData",A19, "MA", "InputChoice=Vol,MAType=Sim,Period=21", "MA","D","-1","all",,,,"T"),"") -> 0.04351739531 | R19: =RYT!Q2 -> https://finance.yahoo.com/quote/FIS
A20: =TRIM(RYT!O3) -> S.US.ADBE | B20: News | C20: =RTD("cqg.rtd", ,"ContractData",A20, "LongDescription",, "T")&" ("&RIGHT(A20,LEN(A20)-5)&")" -> Adobe Inc. (ADBE) | H20: =RTD("cqg.rtd", ,"ContractData",A20, "LastTradeToday",, "T") -> 504.92 | I20: =RTD("cqg.rtd", ,"ContractData",A20, "NetLastTradeToday",, "T") -> 5.97 | J20: =RTD("cqg.rtd", ,"ContractData",A20, "PerCentNetLastTrade",, "T")/100 -> 0.01196512677 | K20: =I20/RTD("cqg.rtd",,"StudyData",A20, "ATR", "MaType=Sim,Period=10", "ATR","D","-1","ALL",,,"FALSE","T")/100 -> 0.006279583465 | L20: =RTD("cqg.rtd", ,"ContractData",A20, "OPen",, "T") -> 501.16 | M20: =RTD("cqg.rtd", ,"ContractData", A20, "HIgh",, "T") -> 505.12 | N20: =RTD("cqg.rtd", ,"ContractData",A20, "LOw",, "T") -> 501 | O20: =RTD("cqg.rtd", ,"ContractData",A20, "T_CVol",, "T") -> 112376 | Q20: =IFERROR(O20/RTD("cqg.rtd",,"StudyData",A20, "MA", "InputChoice=Vol,MAType=Sim,Period=21", "MA","D","-1","all",,,,"T"),"") -> 0.04278349192 | R20: =RYT!Q3 -> https://finance.yahoo.com/quote/ADBE
A21: =TRIM(RYT!O4) -> S.US.MA | B21: News | C21: =RTD("cqg.rtd", ,"ContractData",A21, "LongDescription",, "T")&" ("&RIGHT(A21,LEN(A21)-5)&")" -> Mastercard Inc. (MA) | H21: =RTD("cqg.rtd", ,"ContractData",A21, "LastTradeToday",, "T") -> 347.98 | I21: =RTD("cqg.rtd", ,"ContractData",A21, "NetLastTradeToday",, "T") -> 3.51 | J21: =RTD("cqg.rtd", ,"ContractData",A21, "PerCentNetLastTrade",, "T")/100 -> 0.01018956658 | K21: =I21/RTD("cqg.rtd",,"StudyData",A21, "ATR", "MaType=Sim,Period=10", "ATR","D","-1","ALL",,,"FALSE","T")/100 -> 0.004572098476 | L21: =RTD("cqg.rtd", ,"ContractData",A21, "OPen",, "T") -> 347.78 | M21: =RTD("cqg.rtd", ,"ContractData", A21, "HIgh",, "T") -> 348.75 | N21: =RTD("cqg.rtd", ,"ContractData",A21, "LOw",, "T") -> 346.49 | O21: =RTD("cqg.rtd", ,"ContractData",A21, "T_CVol",, "T") -> 169955 | Q21: =IFERROR(O21/RTD("cqg.rtd",,"StudyData",A21, "MA", "InputChoice=Vol,MAType=Sim,Period=21", "MA","D","-1","all",,,,"T"),"") -> 0.0507582669 | R21: =RYT!Q4 -> https://finance.yahoo.com/quote/MA
A22: =TRIM(RYT!O5) -> S.US.CDW | B22: News | C22: =RTD("cqg.rtd", ,"ContractData",A22, "LongDescription",, "T")&" ("&RIGHT(A22,LEN(A22)-5)&")" -> CDW Corporation (CDW) | H22: =RTD("cqg.rtd", ,"ContractData",A22, "LastTradeToday",, "T") -> 132.37 | I22: =RTD("cqg.rtd", ,"ContractData",A22, "NetLastTradeToday",, "T") -> 1.31 | J22: =RTD("cqg.rtd", ,"ContractData",A22, "PerCentNetLastTrade",, "T")/100 -> 0.009995421944 | K22: =I22/RTD("cqg.rtd",,"StudyData",A22, "ATR", "MaType=Sim,Period=10", "ATR","D","-1","ALL",,,"FALSE","T")/100 -> 0.004256010396 | L22: =RTD("cqg.rtd", ,"ContractData",A22, "OPen",, "T") -> 132.01 | M22: =RTD("cqg.rtd", ,"ContractData", A22, "HIgh",, "T") -> 132.88 | N22: =RTD("cqg.rtd", ,"ContractData",A22, "LOw",, "T") -> 131.56 | O22: =RTD("cqg.rtd", ,"ContractData",A22, "T_CVol",, "T") -> 38357 | Q22: =IFERROR(O22/RTD("cqg.rtd",,"StudyData",A22, "MA", "InputChoice=Vol,MAType=Sim,Period=21", "MA","D","-1","all",,,,"T"),"") -> 0.04463728538 | R22: =RYT!Q5 -> https://finance.yahoo.com/quote/CDW
A23: =TRIM(RYT!O6) -> S.US.V | B23: News | C23: =RTD("cqg.rtd", ,"ContractData",A23, "LongDescription",, "T")&" ("&RIGHT(A23,LEN(A23)-5)&")" -> Visa Inc. (V) | H23: =RTD("cqg.rtd", ,"ContractData",A23, "LastTradeToday",, "T") -> 214.7 | I23: =RTD("cqg.rtd", ,"ContractData",A23, "NetLastTradeToday",, "T") -> 2.07 | J23: =RTD("cqg.rtd", ,"ContractData",A23, "PerCentNetLastTrade",, "T")/100 -> 0.009735220806 | K23: =I23/RTD("cqg.rtd",,"StudyData",A23, "ATR", "MaType=Sim,Period=10", "ATR","D","-1","ALL",,,"FALSE","T")/100 -> 0.005693069307 | L23: =RTD("cqg.rtd", ,"ContractData",A23, "OPen",, "T") -> 214.61 | M23: =RTD("cqg.rtd", ,"ContractData", A23, "HIgh",, "T") -> 214.89 | N23: =RTD("cqg.rtd", ,"ContractData",A23, "LOw",, "T") -> 213.54 | O23: =RTD("cqg.rtd", ,"ContractData",A23, "T_CVol",, "T") -> 427978 | Q23: =IFERROR(O23/RTD("cqg.rtd",,"StudyData",A23, "MA", "InputChoice=Vol,MAType=Sim,Period=21", "MA","D","-1","all",,,,"T"),"") -> 0.05319456816 | R23: =RYT!Q6 -> https://finance.yahoo.com/quote/V
A24: =TRIM(RYT!O7) -> S.US.NVDA | B24: News | C24: =RTD("cqg.rtd", ,"ContractData",A24, "LongDescription",, "T")&" ("&RIGHT(A24,LEN(A24)-5)&")" -> NVIDIA Corp (NVDA) | H24: =RTD("cqg.rtd", ,"ContractData",A24, "LastTradeToday",, "T") -> 521.02 | I24: =RTD("cqg.rtd", ,"ContractData",A24, "NetLastTradeToday",, "T") -> 5.02 | J24: =RTD("cqg.rtd", ,"ContractData",A24, "PerCentNetLastTrade",, "T")/100 -> 0.009728682171 | K24: =I24/RTD("cqg.rtd",,"StudyData",A24, "ATR", "MaType=Sim,Period=10", "ATR","D","-1","ALL",,,"FALSE","T")/100 -> 0.004380071547 | L24: =RTD("cqg.rtd", ,"ContractData",A24, "OPen",, "T") -> 517 | M24: =RTD("cqg.rtd", ,"ContractData", A24, "HIgh",, "T") -> 521.56 | N24: =RTD("cqg.rtd", ,"ContractData",A24, "LOw",, "T") -> 514.87 | O24: =RTD("cqg.rtd", ,"ContractData",A24, "T_CVol",, "T") -> 555352 | Q24: =IFERROR(O24/RTD("cqg.rtd",,"StudyData",A24, "MA", "InputChoice=Vol,MAType=Sim,Period=21", "MA","D","-1","all",,,,"T"),"") -> 0.09350737018 | R24: =RYT!Q7 -> https://finance.yahoo.com/quote/NVDA
A25: =TRIM(RYT!O8) -> S.US.XLNX | B25: News | C25: =RTD("cqg.rtd", ,"ContractData",A25, "LongDescription",, "T")&" ("&RIGHT(A25,LEN(A25)-5)&")" -> Xilinx Inc (XLNX) | H25: =RTD("cqg.rtd", ,"ContractData",A25, "LastTradeToday",, "T") -> 142.84 | I25: =RTD("cqg.rtd", ,"ContractData",A25, "NetLastTradeToday",, "T") -> 1.32 | J25: =RTD("cqg.rtd", ,"ContractData",A25, "PerCentNetLastTrade",, "T")/100 -> 0.009327303561 | K25: =I25/RTD("cqg.rtd",,"StudyData",A25, "ATR", "MaType=Sim,Period=10", "ATR","D","-1","ALL",,,"FALSE","T")/100 -> 0.003074056823 | L25: =RTD("cqg.rtd", ,"ContractData",A25, "OPen",, "T") -> 141.95 | M25: =RTD("cqg.rtd", ,"ContractData", A25, "HIgh",, "T") -> 143.1 | N25: =RTD("cqg.rtd", ,"ContractData",A25, "LOw",, "T") -> 141 | O25: =RTD("cqg.rtd", ,"ContractData",A25, "T_CVol",, "T") -> 115671 | Q25: =IFERROR(O25/RTD("cqg.rtd",,"StudyData",A25, "MA", "InputChoice=Vol,MAType=Sim,Period=21", "MA","D","-1","all",,,,"T"),"") -> 0.05266776179 | R25: =RYT!Q8 -> https://finance.yahoo.com/quote/XLNX
A26: =TRIM(RYT!O9) -> S.US.MSFT | B26: News | C26: =RTD("cqg.rtd", ,"ContractData",A26, "LongDescription",, "T")&" ("&RIGHT(A26,LEN(A26)-5)&")" -> Microsoft Corporation (MSFT) | H26: =RTD("cqg.rtd", ,"ContractData",A26, "LastTradeToday",, "T") -> 226.91 | I26: =RTD("cqg.rtd", ,"ContractData",A26, "NetLastTradeToday",, "T") -> 1.95 | J26: =RTD("cqg.rtd", ,"ContractData",A26, "PerCentNetLastTrade",, "T")/100 -> 0.008668207681 | K26: =I26/RTD("cqg.rtd",,"StudyData",A26, "ATR", "MaType=Sim,Period=10", "ATR","D","-1","ALL",,,"FALSE","T")/100 -> 0.005046583851 | L26: =RTD("cqg.rtd", ,"ContractData",A26, "OPen",, "T") -> 226.31 | M26: =RTD("cqg.rtd", ,"ContractData", A26, "HIgh",, "T") -> 227.18 | N26: =RTD("cqg.rtd", ,"ContractData",A26, "LOw",, "T") -> 225.89 | O26: =RTD("cqg.rtd", ,"ContractData",A26, "T_CVol",, "T") -> 1825768 | Q26: =IFERROR(O26/RTD("cqg.rtd",,"StudyData",A26, "MA", "InputChoice=Vol,MAType=Sim,Period=21", "MA","D","-1","all",,,,"T"),"") -> 0.0657054578 | R26: =RYT!Q9 -> https://finance.yahoo.com/quote/MSFT
A27: =TRIM(RYT!O10) -> S.US.INTU | B27: News | C27: =RTD("cqg.rtd", ,"ContractData",A27, "LongDescription",, "T")&" ("&RIGHT(A27,LEN(A27)-5)&")" -> Intuit Corp (INTU) | H27: =RTD("cqg.rtd", ,"ContractData",A27, "LastTradeToday",, "T") -> 384.42 | I27: =RTD("cqg.rtd", ,"ContractData",A27, "NetLastTradeToday",, "T") -> 3.3 | J27: =RTD("cqg.rtd", ,"ContractData",A27, "PerCentNetLastTrade",, "T")/100 -> 0.008658690176 | K27: =I27/RTD("cqg.rtd",,"StudyData",A27, "ATR", "MaType=Sim,Period=10", "ATR","D","-1","ALL",,,"FALSE","T")/100 -> 0.004079614291 | L27: =RTD("cqg.rtd", ,"ContractData",A27, "OPen",, "T") -> 383.2 | M27: =RTD("cqg.rtd", ,"ContractData", A27, "HIgh",, "T") -> 384.76 | N27: =RTD("cqg.rtd", ,"ContractData",A27, "LOw",, "T") -> 381.12 | O27: =RTD("cqg.rtd", ,"ContractData",A27, "T_CVol",, "T") -> 55128 | Q27: =IFERROR(O27/RTD("cqg.rtd",,"StudyData",A27, "MA", "InputChoice=Vol,MAType=Sim,Period=21", "MA","D","-1","all",,,,"T"),"") -> 0.03906405377 | R27: =RYT!Q10 -> https://finance.yahoo.com/quote/INTU | S27: Bottom 15 Performing Companies
A28: =TRIM(RYT!O11) -> S.US.GPN | B28: News | C28: =RTD("cqg.rtd", ,"ContractData",A28, "LongDescription",, "T")&" ("&RIGHT(A28,LEN(A28)-5)&")" -> Global Payments (GPN) | H28: =RTD("cqg.rtd", ,"ContractData",A28, "LastTradeToday",, "T") -> 210.71 | I28: =RTD("cqg.rtd", ,"ContractData",A28, "NetLastTradeToday",, "T") -> 1.73 | J28: =RTD("cqg.rtd", ,"ContractData",A28, "PerCentNetLastTrade",, "T")/100 -> 0.008278304144 | K28: =I28/RTD("cqg.rtd",,"StudyData",A28, "ATR", "MaType=Sim,Period=10", "ATR","D","-1","ALL",,,"FALSE","T")/100 -> 0.003518405532 | L28: =RTD("cqg.rtd", ,"ContractData",A28, "OPen",, "T") -> 210 | M28: =RTD("cqg.rtd", ,"ContractData", A28, "HIgh",, "T") -> 211.12 | N28: =RTD("cqg.rtd", ,"ContractData",A28, "LOw",, "T") -> 209.7 | O28: =RTD("cqg.rtd", ,"ContractData",A28, "T_CVol",, "T") -> 88348 | Q28: =IFERROR(O28/RTD("cqg.rtd",,"StudyData",A28, "MA", "InputChoice=Vol,MAType=Sim,Period=21", "MA","D","-1","all",,,,"T"),"") -> 0.05873338905 | R28: =RYT!Q11 -> https://finance.yahoo.com/quote/GPN
A29: =TRIM(RYT!O12) -> S.US.AKAM | B29: News | C29: =RTD("cqg.rtd", ,"ContractData",A29, "LongDescription",, "T")&" ("&RIGHT(A29,LEN(A29)-5)&")" -> Akamai Tech Inc (AKAM) | H29: =RTD("cqg.rtd", ,"ContractData",A29, "LastTradeToday",, "T") -> 108.09 | I29: =RTD("cqg.rtd", ,"ContractData",A29, "NetLastTradeToday",, "T") -> 0.81 | J29: =RTD("cqg.rtd", ,"ContractData",A29, "PerCentNetLastTrade",, "T")/100 -> 0.00755033557 | K29: =I29/RTD("cqg.rtd",,"StudyData",A29, "ATR", "MaType=Sim,Period=10", "ATR","D","-1","ALL",,,"FALSE","T")/100 -> 0.004186046512 | L29: =RTD("cqg.rtd", ,"ContractData",A29, "OPen",, "T") -> 107.1 | M29: =RTD("cqg.rtd", ,"ContractData", A29, "HIgh",, "T") -> 108.19 | N29: =RTD("cqg.rtd", ,"ContractData",A29, "LOw",, "T") -> 107 | O29: =RTD("cqg.rtd", ,"ContractData",A29, "T_CVol",, "T") -> 71995 | Q29: =IFERROR(O29/RTD("cqg.rtd",,"StudyData",A29, "MA", "InputChoice=Vol,MAType=Sim,Period=21", "MA","D","-1","all",,,,"T"),"") -> 0.04992463234 | R29: =RYT!Q12 -> https://finance.yahoo.com/quote/AKAM
A30: =TRIM(RYT!O13) -> S.US.VRSN | B30: News | C30: =RTD("cqg.rtd", ,"ContractData",A30, "LongDescription",, "T")&" ("&RIGHT(A30,LEN(A30)-5)&")" -> Verisign Inc (VRSN) | H30: =RTD("cqg.rtd", ,"ContractData",A30, "LastTradeToday",, "T") -> 218.35 | I30: =RTD("cqg.rtd", ,"ContractData",A30, "NetLastTradeToday",, "T") -> 1.55 | J30: =RTD("cqg.rtd", ,"ContractData",A30, "PerCentNetLastTrade",, "T")/100 -> 0.007149446494 | K30: =I30/RTD("cqg.rtd",,"StudyData",A30, "ATR", "MaType=Sim,Period=10", "ATR","D","-1","ALL",,,"FALSE","T")/100 -> 0.004297199889 | L30: =RTD("cqg.rtd", ,"ContractData",A30, "OPen",, "T") -> 218.14 | M30: =RTD("cqg.rtd", ,"ContractData", A30, "HIgh",, "T") -> 218.86 | N30: =RTD("cqg.rtd", ,"ContractData",A30, "LOw",, "T") -> 217.1 | O30: =RTD("cqg.rtd", ,"ContractData",A30, "T_CVol",, "T") -> 16148 | Q30: =IFERROR(O30/RTD("cqg.rtd",,"StudyData",A30, "MA", "InputChoice=Vol,MAType=Sim,Period=21", "MA","D","-1","all",,,,"T"),"") -> 0.0255197504 | R30: =RYT!Q13 -> https://finance.yahoo.com/quote/VRSN
A31: =TRIM(RYT!O14) -> S.US.QCOM | B31: News | C31: =RTD("cqg.rtd", ,"ContractData",A31, "LongDescription",, "T")&" ("&RIGHT(A31,LEN(A31)-5)&")" ->  | H31: =RTD("cqg.rtd", ,"ContractData",A31, "LastTradeToday",, "T") ->  | I31: =RTD("cqg.rtd", ,"ContractData",A31, "NetLastTradeToday",, "T") ->  | J31: =RTD("cqg.rtd", ,"ContractData",A31, "PerCentNetLastTrade",, "T")/100 ->  | K31: =I31/RTD("cqg.rtd",,"StudyData",A31, "ATR", "MaType=Sim,Period=10", "ATR","D","-1","ALL",,,"FALSE","T")/100 ->  | L31: =RTD("cqg.rtd", ,"ContractData",A31, "OPen",, "T") ->  | M31: =RTD("cqg.rtd", ,"ContractData", A31, "HIgh",, "T") ->  | N31: =RTD("cqg.rtd", ,"ContractData",A31, "LOw",, "T") ->  | O31: =RTD("cqg.rtd", ,"ContractData",A31, "T_CVol",, "T") ->  | Q31: =IFERROR(O31/RTD("cqg.rtd",,"StudyData",A31, "MA", "InputChoice=Vol,MAType=Sim,Period=21", "MA","D","-1","all",,,,"T"),"") ->  | R31: =RYT!Q14 -> https://finance.yahoo.com/quote/QCOM
A32: =TRIM(RYT!O15) -> S.US.AAPL | B32: News | C32: =RTD("cqg.rtd", ,"ContractData",A32, "LongDescription",, "T")&" ("&RIGHT(A32,LEN(A32)-5)&")" -> Apple Inc (AAPL) | H32: =RTD("cqg.rtd", ,"ContractData",A32, "LastTradeToday",, "T") -> 137.63 | I32: =RTD("cqg.rtd", ,"ContractData",A32, "NetLastTradeToday",, "T") -> 0.96 | J32: =RTD("cqg.rtd", ,"ContractData",A32, "PerCentNetLastTrade",, "T")/100 -> 0.007023191162 | K32: =I32/RTD("cqg.rtd",,"StudyData",A32, "ATR", "MaType=Sim,Period=10", "ATR","D","-1","ALL",,,"FALSE","T")/100 -> 0.002738944365 | L32: =RTD("cqg.rtd", ,"ContractData",A32, "OPen",, "T") -> 138.05 | M32: =RTD("cqg.rtd", ,"ContractData", A32, "HIgh",, "T") -> 138.78 | N32: =RTD("cqg.rtd", ,"ContractData",A32, "LOw",, "T") -> 137.26 | O32: =RTD("cqg.rtd", ,"ContractData",A32, "T_CVol",, "T") -> 17300424 | Q32: =IFERROR(O32/RTD("cqg.rtd",,"StudyData",A32, "MA", "InputChoice=Vol,MAType=Sim,Period=21", "MA","D","-1","all",,,,"T"),"") -> 0.163447928 | R32: =RYT!Q15 -> https://finance.yahoo.com/quote/AAPL
C33: Bottom 15 Description | H33: Last | I33: NC | J33: %NC | K33: NC/ATR | L33: Open | M33: High | N33: Low | O33: Volume | Q33: Ratio
A34: =TRIM(RYT!O59) -> S.US.LRCX | B34: =HYPERLINK(R34,$R$17) -> News | C34: =RTD("cqg.rtd", ,"ContractData",A34, "LongDescription",, "T")&" ("&RIGHT(A34,LEN(A34)-5)&")" -> LAM Research Corporation (LRCX) | H34: =RTD("cqg.rtd", ,"ContractData",A34, "LastTradeToday",, "T") -> 474.58 | I34: =RTD("cqg.rtd", ,"ContractData",A34, "NetLastTradeToday",, "T") -> -1.52 | J34: =RTD("cqg.rtd", ,"ContractData",A34, "PerCentNetLastTrade",, "T")/100 -> -0.003192606595 | K34: =I34/RTD("cqg.rtd",,"StudyData",A34, "ATR", "MaType=Sim,Period=10", "ATR","D","-1","ALL",,,"FALSE","T")/100 -> -0.001443083642 | L34: =RTD("cqg.rtd", ,"ContractData",A34, "OPen",, "T") -> 475.66 | M34: =RTD("cqg.rtd", ,"ContractData", A34, "HIgh",, "T") -> 477.01 | N34: =RTD("cqg.rtd", ,"ContractData",A34, "LOw",, "T") -> 473.6 | O34: =RTD("cqg.rtd", ,"ContractData",A34, "T_CVol",, "T") -> 69217 | Q34: =IFERROR(O34/RTD("cqg.rtd",,"StudyData",A34, "MA", "InputChoice=Vol,MAType=Sim,Period=21", "MA","D","-1","all",,,,"T"),"") -> 0.05080315289 | R34: =RYT!Q59 -> https://finance.yahoo.com/quote/LRCX
A35: =TRIM(RYT!O60) -> S.US.AMAT | B35: News | C35: =RTD("cqg.rtd", ,"ContractData",A35, "LongDescription",, "T")&" ("&RIGHT(A35,LEN(A35)-5)&")" -> Applied Materials Inc (AMAT) | H35: =RTD("cqg.rtd", ,"ContractData",A35, "LastTradeToday",, "T") -> 84.57 | I35: =RTD("cqg.rtd", ,"ContractData",A35, "NetLastTradeToday",, "T") -> -0.3 | J35: =RTD("cqg.rtd", ,"ContractData",A35, "PerCentNetLastTrade",, "T")/100 -> -0.003534817957 | K35: =I35/RTD("cqg.rtd",,"StudyData",A35, "ATR", "MaType=Sim,Period=10", "ATR","D","-1","ALL",,,"FALSE","T")/100 -> -0.001386321627 | L35: =RTD("cqg.rtd", ,"ContractData",A35, "OPen",, "T") -> 85.02 | M35: =RTD("cqg.rtd", ,"ContractData", A35, "HIgh",, "T") -> 85.11 | N35: =RTD("cqg.rtd", ,"ContractData",A35, "LOw",, "T") -> 84.36 | O35: =RTD("cqg.rtd", ,"ContractData",A35, "T_CVol",, "T") -> 222376 | Q35: =IFERROR(O35/RTD("cqg.rtd",,"StudyData",A35, "MA", "InputChoice=Vol,MAType=Sim,Period=21", "MA","D","-1","all",,,,"T"),"") -> 0.0388732694 | R35: =RYT!Q60 -> https://finance.yahoo.com/quote/AMAT
A36: =TRIM(RYT!O61) -> S.US.KLAC | B36: News | C36: =RTD("cqg.rtd", ,"ContractData",A36, "LongDescription",, "T")&" ("&RIGHT(A36,LEN(A36)-5)&")" -> KLA Corporation (KLAC) | H36: =RTD("cqg.rtd", ,"ContractData",A36, "LastTradeToday",, "T") -> 256.51 | I36: =RTD("cqg.rtd", ,"ContractData",A36, "NetLastTradeToday",, "T") -> -1.07 | J36: =RTD("cqg.rtd", ,"ContractData",A36, "PerCentNetLastTrade",, "T")/100 -> -0.004154049227 | K36: =I36/RTD("cqg.rtd",,"StudyData",A36, "ATR", "MaType=Sim,Period=10", "ATR","D","-1","ALL",,,"FALSE","T")/100 -> -0.00205295472 | L36: =RTD("cqg.rtd", ,"ContractData",A36, "OPen",, "T") -> 258.04 | M36: =RTD("cqg.rtd", ,"ContractData", A36, "HIgh",, "T") -> 258.76 | N36: =RTD("cqg.rtd", ,"ContractData",A36, "LOw",, "T") -> 256.18 | O36: =RTD("cqg.rtd", ,"ContractData",A36, "T_CVol",, "T") -> 27184 | Q36: =IFERROR(O36/RTD("cqg.rtd",,"StudyData",A36, "MA", "InputChoice=Vol,MAType=Sim,Period=21", "MA","D","-1","all",,,,"T"),"") -> 0.03083237096 | R36: =RYT!Q61 -> https://finance.yahoo.com/quote/KLAC
A37: =TRIM(RYT!O62) -> S.US.CTSH | B37: News | C37: =RTD("cqg.rtd", ,"ContractData",A37, "LongDescription",, "T")&" ("&RIGHT(A37,LEN(A37)-5)&")" -> Cognizant Tech Solutions Corp (CTSH) | H37: =RTD("cqg.rtd", ,"ContractData",A37, "LastTradeToday",, "T") -> 81.02 | I37: =RTD("cqg.rtd", ,"ContractData",A37, "NetLastTradeToday",, "T") -> -0.35 | J37: =RTD("cqg.rtd", ,"ContractData",A37, "PerCentNetLastTrade",, "T")/100 -> -0.00430133956 | K37: =I37/RTD("cqg.rtd",,"StudyData",A37, "ATR", "MaType=Sim,Period=10", "ATR","D","-1","ALL",,,"FALSE","T")/100 -> -0.002180685358 | L37: =RTD("cqg.rtd", ,"ContractData",A37, "OPen",, "T") -> 82.02 | M37: =RTD("cqg.rtd", ,"ContractData", A37, "HIgh",, "T") -> 82.08 | N37: =RTD("cqg.rtd", ,"ContractData",A37, "LOw",, "T") -> 81.02 | O37: =RTD("cqg.rtd", ,"ContractData",A37, "T_CVol",, "T") -> 58307 | Q37: =IFERROR(O37/RTD("cqg.rtd",,"StudyData",A37, "MA", "InputChoice=Vol,MAType=Sim,Period=21", "MA","D","-1","all",,,,"T"),"") -> 0.0203056244 | R37: =RYT!Q62 -> https://finance.yahoo.com/quote/CTSH
A38: =TRIM(RYT!O63) -> S.US.NTAP | B38: News | C38: =RTD("cqg.rtd", ,"ContractData",A38, "LongDescription",, "T")&" ("&RIGHT(A38,LEN(A38)-5)&")" -> NetApp inc. (NTAP) | H38: =RTD("cqg.rtd", ,"ContractData",A38, "LastTradeToday",, "T") -> 65.6 | I38: =RTD("cqg.rtd", ,"ContractData",A38, "NetLastTradeToday",, "T") -> -0.3 | J38: =RTD("cqg.rtd", ,"ContractData",A38, "PerCentNetLastTrade",, "T")/100 -> -0.004552352049 | K38: =I38/RTD("cqg.rtd",,"StudyData",A38, "ATR", "MaType=Sim,Period=10", "ATR","D","-1","ALL",,,"FALSE","T")/100 -> -0.001940491591 | L38: =RTD("cqg.rtd", ,"ContractData",A38, "OPen",, "T") -> 65.86 | M38: =RTD("cqg.rtd", ,"ContractData", A38, "HIgh",, "T") -> 66.27 | N38: =RTD("cqg.rtd", ,"ContractData",A38, "LOw",, "T") -> 65.28 | O38: =RTD("cqg.rtd", ,"ContractData",A38, "T_CVol",, "T") -> 65098 | Q38: =IFERROR(O38/RTD("cqg.rtd",,"StudyData",A38, "MA", "InputChoice=Vol,MAType=Sim,Period=21", "MA","D","-1","all",,,,"T"),"") -> 0.02490337645 | R38: =RYT!Q63 -> https://finance.yahoo.com/quote/NTAP
A39: =TRIM(RYT!O64) -> S.US.KEYS | B39: News | C39: =RTD("cqg.rtd", ,"ContractData",A39, "LongDescription",, "T")&" ("&RIGHT(A39,LEN(A39)-5)&")" -> Keysight Technologies Inc. (KEYS) | H39: =RTD("cqg.rtd", ,"ContractData",A39, "LastTradeToday",, "T") -> 131.15 | I39: =RTD("cqg.rtd", ,"ContractData",A39, "NetLastTradeToday",, "T") -> -0.67 | J39: =RTD("cqg.rtd", ,"ContractData",A39, "PerCentNetLastTrade",, "T")/100 -> -0.005082688515 | K39: =I39/RTD("cqg.rtd",,"StudyData",A39, "ATR", "MaType=Sim,Period=10", "ATR","D","-1","ALL",,,"FALSE","T")/100 -> -0.002610050643 | L39: =RTD("cqg.rtd", ,"ContractData",A39, "OPen",, "T") -> 132.14 | M39: =RTD("cqg.rtd", ,"ContractData", A39, "HIgh",, "T") -> 132.42 | N39: =RTD("cqg.rtd", ,"ContractData",A39, "LOw",, "T") -> 131.04 | O39: =RTD("cqg.rtd", ,"ContractData",A39, "T_CVol",, "T") -> 38294 | Q39: =IFERROR(O39/RTD("cqg.rtd",,"StudyData",A39, "MA", "InputChoice=Vol,MAType=Sim,Period=21", "MA","D","-1","all",,,,"T"),"") -> 0.02964738199 | R39: =RYT!Q64 -> https://finance.yahoo.com/quote/KEYS
A40: =TRIM(RYT!O65) -> S.US.PAYC | B40: News | C40: =RTD("cqg.rtd", ,"ContractData",A40, "LongDescription",, "T")&" ("&RIGHT(A40,LEN(A40)-5)&")" -> Paycom Software, Inc. (PAYC) | H40: =RTD("cqg.rtd", ,"ContractData",A40, "LastTradeToday",, "T") -> 460.84 | I40: =RTD("cqg.rtd", ,"ContractData",A40, "NetLastTradeToday",, "T") -> -2.75 | J40: =RTD("cqg.rtd", ,"ContractData",A40, "PerCentNetLastTrade",, "T")/100 -> -0.005931965746 | K40: =I40/RTD("cqg.rtd",,"StudyData",A40, "ATR", "MaType=Sim,Period=10", "ATR","D","-1","ALL",,,"FALSE","T")/100 -> -0.002163991187 | L40: =RTD("cqg.rtd", ,"ContractData",A40, "OPen",, "T") -> 464 | M40: =RTD("cqg.rtd", ,"ContractData", A40, "HIgh",, "T") -> 464.65 | N40: =RTD("cqg.rtd", ,"ContractData",A40, "LOw",, "T") -> 459.65 | O40: =RTD("cqg.rtd", ,"ContractData",A40, "T_CVol",, "T") -> 8568 | Q40: =IFERROR(O40/RTD("cqg.rtd",,"StudyData",A40, "MA", "InputChoice=Vol,MAType=Sim,Period=21", "MA","D","-1","all",,,,"T"),"") -> 0.02373416908 | R40: =RYT!Q65 -> https://finance.yahoo.com/quote/PAYC
A41: =TRIM(RYT!O66) -> S.US.PYPL | B41: News | C41: =RTD("cqg.rtd", ,"ContractData",A41, "LongDescription",, "T")&" ("&RIGHT(A41,LEN(A41)-5)&")" -> PayPal Holdings, Inc. (PYPL) | H41: =RTD("cqg.rtd", ,"ContractData",A41, "LastTradeToday",, "T") -> 234.03 | I41: =RTD("cqg.rtd", ,"ContractData",A41, "NetLastTradeToday",, "T") -> -1.7 | J41: =RTD("cqg.rtd", ,"ContractData",A41, "PerCentNetLastTrade",, "T")/100 -> -0.007211640436 | K41: =I41/RTD("cqg.rtd",,"StudyData",A41, "ATR", "MaType=Sim,Period=10", "ATR","D","-1","ALL",,,"FALSE","T")/100 -> -0.002487562189 | L41: =RTD("cqg.rtd", ,"ContractData",A41, "OPen",, "T") -> 236 | M41: =RTD("cqg.rtd", ,"ContractData", A41, "HIgh",, "T") -> 236.25 | N41: =RTD("cqg.rtd", ,"ContractData",A41, "LOw",, "T") -> 233.1 | O41: =RTD("cqg.rtd", ,"ContractData",A41, "T_CVol",, "T") -> 534992 | Q41: =IFERROR(O41/RTD("cqg.rtd",,"StudyData",A41, "MA", "InputChoice=Vol,MAType=Sim,Period=21", "MA","D","-1","all",,,,"T"),"") -> 0.07147200737 | R41: =RYT!Q66 -> https://finance.yahoo.com/quote/PYPL
A42: =TRIM(RYT!O67) -> S.US.QRVO | B42: News | C42: =RTD("cqg.rtd", ,"ContractData",A42, "LongDescription",, "T")&" ("&RIGHT(A42,LEN(A42)-5)&")" -> Qorvo (QRVO) | H42: =RTD("cqg.rtd", ,"ContractData",A42, "LastTradeToday",, "T") -> 165.21 | I42: =RTD("cqg.rtd", ,"ContractData",A42, "NetLastTradeToday",, "T") -> -1.23 | J42: =RTD("cqg.rtd", ,"ContractData",A42, "PerCentNetLastTrade",, "T")/100 -> -0.007390050469 | K42: =I42/RTD("cqg.rtd",,"StudyData",A42, "ATR", "MaType=Sim,Period=10", "ATR","D","-1","ALL",,,"FALSE","T")/100 -> -0.002747989276 | L42: =RTD("cqg.rtd", ,"ContractData",A42, "OPen",, "T") -> 166.98 | M42: =RTD("cqg.rtd", ,"ContractData", A42, "HIgh",, "T") -> 167.43 | N42: =RTD("cqg.rtd", ,"ContractData",A42, "LOw",, "T") -> 164.73 | O42: =RTD("cqg.rtd", ,"ContractData",A42, "T_CVol",, "T") -> 93568 | Q42: =IFERROR(O42/RTD("cqg.rtd",,"StudyData",A42, "MA", "InputChoice=Vol,MAType=Sim,Period=21", "MA","D","-1","all",,,,"T"),"") -> 0.07256503533 | R42: =RYT!Q67 -> https://finance.yahoo.com/quote/QRVO
A43: =TRIM(RYT!O68) -> S.US.ZBRA | B43: News | C43: =RTD("cqg.rtd", ,"ContractData",A43, "LongDescription",, "T")&" ("&RIGHT(A43,LEN(A43)-5)&")" -> Zebra Technologies Corp (ZBRA) | H43: =RTD("cqg.rtd", ,"ContractData",A43, "LastTradeToday",, "T") -> 379.65 | I43: =RTD("cqg.rtd", ,"ContractData",A43, "NetLastTradeToday",, "T") -> -2.94 | J43: =RTD("cqg.rtd", ,"ContractData",A43, "PerCentNetLastTrade",, "T")/100 -> -0.0076844664 | K43: =I43/RTD("cqg.rtd",,"StudyData",A43, "ATR", "MaType=Sim,Period=10", "ATR","D","-1","ALL",,,"FALSE","T")/100 -> -0.003088235294 | L43: =RTD("cqg.rtd", ,"ContractData",A43, "OPen",, "T") -> 384.69 | M43: =RTD("cqg.rtd", ,"ContractData", A43, "HIgh",, "T") -> 385.41 | N43: =RTD("cqg.rtd", ,"ContractData",A43, "LOw",, "T") -> 379.65 | O43: =RTD("cqg.rtd", ,"ContractData",A43, "T_CVol",, "T") -> 10266 | Q43: =IFERROR(O43/RTD("cqg.rtd",,"StudyData",A43, "MA", "InputChoice=Vol,MAType=Sim,Period=21", "MA","D","-1","all",,,,"T"),"") -> 0.0280243573 | R43: =RYT!Q68 -> https://finance.yahoo.com/quote/ZBRA
A44: =TRIM(RYT!O69) -> S.US.WDC | B44: News | C44: =RTD("cqg.rtd", ,"ContractData",A44, "LongDescription",, "T")&" ("&RIGHT(A44,LEN(A44)-5)&")" -> Western Digital Corporation (WDC) | H44: =RTD("cqg.rtd", ,"ContractData",A44, "LastTradeToday",, "T") -> 49.64 | I44: =RTD("cqg.rtd", ,"ContractData",A44, "NetLastTradeToday",, "T") -> -0.42 | J44: =RTD("cqg.rtd", ,"ContractData",A44, "PerCentNetLastTrade",, "T")/100 -> -0.008389932082 | K44: =I44/RTD("cqg.rtd",,"StudyData",A44, "ATR", "MaType=Sim,Period=10", "ATR","D","-1","ALL",,,"FALSE","T")/100 -> -0.002772277228 | L44: =RTD("cqg.rtd", ,"ContractData",A44, "OPen",, "T") -> 50.64 | M44: =RTD("cqg.rtd", ,"ContractData", A44, "HIgh",, "T") -> 50.64 | N44: =RTD("cqg.rtd", ,"ContractData",A44, "LOw",, "T") -> 49.58 | O44: =RTD("cqg.rtd", ,"ContractData",A44, "T_CVol",, "T") -> 228724 | Q44: =IFERROR(O44/RTD("cqg.rtd",,"StudyData",A44, "MA", "InputChoice=Vol,MAType=Sim,Period=21", "MA","D","-1","all",,,,"T"),"") -> 0.05632663162 | R44: =RYT!Q69 -> https://finance.yahoo.com/quote/WDC
A45: =TRIM(RYT!O70) -> S.US.VNT | B45: News | C45: =RTD("cqg.rtd", ,"ContractData",A45, "LongDescription",, "T")&" ("&RIGHT(A45,LEN(A45)-5)&")" -> Vontier Corporation (VNT) | H45: =RTD("cqg.rtd", ,"ContractData",A45, "LastTradeToday",, "T") -> 33.03 | I45: =RTD("cqg.rtd", ,"ContractData",A45, "NetLastTradeToday",, "T") -> -0.35 | J45: =RTD("cqg.rtd", ,"ContractData",A45, "PerCentNetLastTrade",, "T")/100 -> -0.01048532055 | K45: =I45/RTD("cqg.rtd",,"StudyData",A45, "ATR", "MaType=Sim,Period=10", "ATR","D","-1","ALL",,,"FALSE","T")/100 -> -0.003451676529 | L45: =RTD("cqg.rtd", ,"ContractData",A45, "OPen",, "T") -> 33.17 | M45: =RTD("cqg.rtd", ,"ContractData", A45, "HIgh",, "T") -> 33.59 | N45: =RTD("cqg.rtd", ,"ContractData",A45, "LOw",, "T") -> 33 | O45: =RTD("cqg.rtd", ,"ContractData",A45, "T_CVol",, "T") -> 182411 | Q45: =IFERROR(O45/RTD("cqg.rtd",,"StudyData",A45, "MA", "InputChoice=Vol,MAType=Sim,Period=21", "MA","D","-1","all",,,,"T"),"") -> 0.1001331028 | R45: =RYT!Q70 -> https://finance.yahoo.com/quote/VNT
A46: =TRIM(RYT!O71) -> S.US.STX | B46: News | C46: =RTD("cqg.rtd", ,"ContractData",A46, "LongDescription",, "T")&" ("&RIGHT(A46,LEN(A46)-5)&")" -> Seagate Technology (STX) | H46: =RTD("cqg.rtd", ,"ContractData",A46, "LastTradeToday",, "T") -> 61.76 | I46: =RTD("cqg.rtd", ,"ContractData",A46, "NetLastTradeToday",, "T") -> -0.76 | J46: =RTD("cqg.rtd", ,"ContractData",A46, "PerCentNetLastTrade",, "T")/100 -> -0.01215611004 | K46: =I46/RTD("cqg.rtd",,"StudyData",A46, "ATR", "MaType=Sim,Period=10", "ATR","D","-1","ALL",,,"FALSE","T")/100 -> -0.006050955414 | L46: =RTD("cqg.rtd", ,"ContractData",A46, "OPen",, "T") -> 62.17 | M46: =RTD("cqg.rtd", ,"ContractData", A46, "HIgh",, "T") -> 62.3 | N46: =RTD("cqg.rtd", ,"ContractData",A46, "LOw",, "T") -> 61.71 | O46: =RTD("cqg.rtd", ,"ContractData",A46, "T_CVol",, "T") -> 166263 | Q46: =IFERROR(O46/RTD("cqg.rtd",,"StudyData",A46, "MA", "InputChoice=Vol,MAType=Sim,Period=21", "MA","D","-1","all",,,,"T"),"") -> 0.06001013299 | R46: =RYT!Q71 -> https://finance.yahoo.com/quote/STX
A47: =TRIM(RYT!O72) -> S.US.FLIR | B47: News | C47: =RTD("cqg.rtd", ,"ContractData",A47, "LongDescription",, "T")&" ("&RIGHT(A47,LEN(A47)-5)&")" -> FLIR Systems Inc (FLIR) | H47: =RTD("cqg.rtd", ,"ContractData",A47, "LastTradeToday",, "T") -> 43.99 | I47: =RTD("cqg.rtd", ,"ContractData",A47, "NetLastTradeToday",, "T") -> -0.55 | J47: =RTD("cqg.rtd", ,"ContractData",A47, "PerCentNetLastTrade",, "T")/100 -> -0.01232354918 | K47: =I47/RTD("cqg.rtd",,"StudyData",A47, "ATR", "MaType=Sim,Period=10", "ATR","D","-1","ALL",,,"FALSE","T")/100 -> -0.004464285714 | L47: =RTD("cqg.rtd", ,"ContractData",A47, "OPen",, "T") -> 44.54 | M47: =RTD("cqg.rtd", ,"ContractData", A47, "HIgh",, "T") -> 44.78 | N47: =RTD("cqg.rtd", ,"ContractData",A47, "LOw",, "T") -> 43.65 | O47: =RTD("cqg.rtd", ,"ContractData",A47, "T_CVol",, "T") -> 99635 | Q47: =IFERROR(O47/RTD("cqg.rtd",,"StudyData",A47, "MA", "InputChoice=Vol,MAType=Sim,Period=21", "MA","D","-1","all",,,,"T"),"") -> 0.05044362428 | R47: =RYT!Q72 -> https://finance.yahoo.com/quote/FLIR
A48: =TRIM(RYT!O73) -> S.US.DXC | B48: News | C48: =RTD("cqg.rtd", ,"ContractData",A48, "LongDescription",, "T")&" ("&RIGHT(A48,LEN(A48)-5)&")" -> DXC Technology Company (DXC) | H48: =RTD("cqg.rtd", ,"ContractData",A48, "LastTradeToday",, "T") -> 23.68 | I48: =RTD("cqg.rtd", ,"ContractData",A48, "NetLastTradeToday",, "T") -> -0.38 | J48: =RTD("cqg.rtd", ,"ContractData",A48, "PerCentNetLastTrade",, "T")/100 -> -0.01579384871 | K48: =I48/RTD("cqg.rtd",,"StudyData",A48, "ATR", "MaType=Sim,Period=10", "ATR","D","-1","ALL",,,"FALSE","T")/100 -> -0.004714640199 | L48: =RTD("cqg.rtd", ,"ContractData",A48, "OPen",, "T") -> 24.2 | M48: =RTD("cqg.rtd", ,"ContractData", A48, "HIgh",, "T") -> 24.2 | N48: =RTD("cqg.rtd", ,"ContractData",A48, "LOw",, "T") -> 23.65 | O48: =RTD("cqg.rtd", ,"ContractData",A48, "T_CVol",, "T") -> 254827 | Q48: =IFERROR(O48/RTD("cqg.rtd",,"StudyData",A48, "MA", "InputChoice=Vol,MAType=Sim,Period=21", "MA","D","-1","all",,,,"T"),"") -> 0.1186698148 | R48: =RYT!Q73 -> https://finance.yahoo.com/quote/DXC
C49: CQG Inc., Copyright © 2019 | G49: Designed by Thom Hartle | J49: Standard & Poor’s® and S&P® are registered trademarks of Standard & Poor’s Financial Services LLC. | Z49: =RYT!AB74 -> 0.6712328767 | AA49: of the stocks in the ETF are higher today

Sheet RYT
C1: S.US.AAPL | D1: =RTD("cqg.rtd", ,"ContractData",C1, "LongDescription",, "T") -> Apple Inc | E1: =RTD("cqg.rtd", ,"ContractData",C1, "Open",, "T") -> 138.05 | F1: =RTD("cqg.rtd", ,"ContractData",C1, "High",, "T") -> 138.78 | G1: =RTD("cqg.rtd", ,"ContractData",C1, "Low",, "T") -> 137.26 | H1: =RTD("cqg.rtd", ,"ContractData",C1, "LastTradeToday",, "T") -> 137.63 | I1: =RTD("cqg.rtd", ,"ContractData",C1, "NetLastTradeToday",, "T") -> 0.96 | J1: =RTD("cqg.rtd", ,"ContractData",C1, "PerCentNetLastTrade",, "T")/100 -> 0.007023191162 | K1: =RTD("cqg.rtd", ,"ContractData", C1, "T_CVol",, "T") -> 17300424 | L1: 1 | M1: =RANK($J1,$J$1:J$73)+COUNTIF($J$1:J1,J1)-1 -> 15 | N1: =C1 -> S.US.AAPL | O1: =VLOOKUP($L1,$M$1:$N$73,2,FALSE) -> S.US.NOW | P1: =RTD("cqg.rtd", ,"ContractData",O1, "PerCentNetLastTrade",, "T")/100 -> 0.01287379998 | Q1: ="https://finance.yahoo.com/quote/"&RIGHT(O1,(LEN(O1)-5)) -> https://finance.yahoo.com/quote/NOW | S1: =IF(P1>=0,P1,NA()) -> 0.01287379998 | T1: =IF(P1>=0,NA(),-1*P1) ->  | V1: =RTD("cqg.rtd", ,"ContractData",O1, "LongDescription",, "T") -> ServiceNow, Inc. | Y1: =IFERROR(S1,P1) -> 0.01287379998 | AA1: =IF(S1="NA()",0,1) -> 1 | AB1: =IFERROR(AA1,0) -> 1 | AD1: =IFERROR(S1,"") -> 0.01287379998 | AE1: =IFERROR(T1,"") ->  | AF1: =IF(AE1="","",Y1) -> 
C2: S.US.ACN | D2: =RTD("cqg.rtd", ,"ContractData",C2, "LongDescription",, "T") -> Accenture PLC Ireland | E2: =RTD("cqg.rtd", ,"ContractData",C2, "Open",, "T") -> 260.89 | F2: =RTD("cqg.rtd", ,"ContractData",C2, "High",, "T") -> 261.02 | G2: =RTD("cqg.rtd", ,"ContractData",C2, "Low",, "T") -> 259.45 | H2: =RTD("cqg.rtd", ,"ContractData",C2, "LastTradeToday",, "T") -> 259.8 | I2: =RTD("cqg.rtd", ,"ContractData",C2, "NetLastTradeToday",, "T") -> 0.12 | J2: =RTD("cqg.rtd", ,"ContractData",C2, "PerCentNetLastTrade",, "T")/100 -> 0.0004621072089 | K2: =RTD("cqg.rtd", ,"ContractData", C2, "T_CVol",, "T") -> 60159 | L2: =L1+1 -> 2 | M2: =RANK($J2,$J$1:J$73)+COUNTIF($J$1:J2,J2)-1 -> 44 | N2: =C2 -> S.US.ACN | O2: =VLOOKUP($L2,$M$1:$N$73,2,FALSE) -> S.US.FIS | P2: =RTD("cqg.rtd", ,"ContractData",O2, "PerCentNetLastTrade",, "T")/100 -> 0.0122611919 | Q2: ="https://finance.yahoo.com/quote/"&RIGHT(O2,(LEN(O2)-5)) -> https://finance.yahoo.com/quote/FIS | S2: =IF(P2>=0,P2,NA()) -> 0.0122611919 | T2: =IF(P2>=0,NA(),-1*P2) ->  | V2: =RTD("cqg.rtd", ,"ContractData",O2, "LongDescription",, "T") -> Fidelity National Info Services | Y2: =IFERROR(S2,P2) -> 0.0122611919 | AA2: =IF(S2="NA()",0,1) -> 1 | AB2: =IFERROR(AA2,0) -> 1 | AD2: =IFERROR(S2,"") -> 0.0122611919 | AE2: =IFERROR(T2,"") ->  | AF2: =IF(AE2="","",Y2) -> 
C3: S.US.ADBE | D3: =RTD("cqg.rtd", ,"ContractData",C3, "LongDescription",, "T") -> Adobe Inc. | E3: =RTD("cqg.rtd", ,"ContractData",C3, "Open",, "T") -> 501.16 | F3: =RTD("cqg.rtd", ,"ContractData",C3, "High",, "T") -> 505.12 | G3: =RTD("cqg.rtd", ,"ContractData",C3, "Low",, "T") -> 501 | H3: =RTD("cqg.rtd", ,"ContractData",C3, "LastTradeToday",, "T") -> 504.92 | I3: =RTD("cqg.rtd", ,"ContractData",C3, "NetLastTradeToday",, "T") -> 5.97 | J3: =RTD("cqg.rtd", ,"ContractData",C3, "PerCentNetLastTrade",, "T")/100 -> 0.01196512677 | K3: =RTD("cqg.rtd", ,"ContractData", C3, "T_CVol",, "T") -> 112376 | L3: =L2+1 -> 3 | M3: =RANK($J3,$J$1:J$73)+COUNTIF($J$1:J3,J3)-1 -> 3 | N3: S.US.ADBE | O3: S.US.ADBE | P3: =RTD("cqg.rtd", ,"ContractData",O3, "PerCentNetLastTrade",, "T")/100 -> 0.01196512677 | Q3: https://finance.yahoo.com/quote/ADBE | S3: 0.01196512677 | V3: =RTD("cqg.rtd", ,"ContractData",O3, "LongDescription",, "T") -> Adobe Inc. | Y3: 0.01196512677 | AA3: 1 | AB3: 1 | AD3: 0.01196512677
C4: S.US.ADI | D4: =RTD("cqg.rtd", ,"ContractData",C4, "LongDescription",, "T") -> Analog Devices Inc | E4: =RTD("cqg.rtd", ,"ContractData",C4, "Open",, "T") -> 145.18 | F4: =RTD("cqg.rtd", ,"ContractData",C4, "High",, "T") -> 145.24 | G4: =RTD("cqg.rtd", ,"ContractData",C4, "Low",, "T") -> 144.65 | H4: =RTD("cqg.rtd", ,"ContractData",C4, "LastTradeToday",, "T") -> 144.95 | I4: =RTD("cqg.rtd", ,"ContractData",C4, "NetLastTradeToday",, "T") -> 0.27 | J4: =RTD("cqg.rtd", ,"ContractData",C4, "PerCentNetLastTrade",, "T")/100 -> 0.001866187448 | K4: =RTD("cqg.rtd", ,"ContractData", C4, "T_CVol",, "T") -> 63499 | L4: 4 | M4: =RANK($J4,$J$1:J$73)+COUNTIF($J$1:J4,J4)-1 -> 37 | N4: S.US.ADI | O4: S.US.MA | P4: =RTD("cqg.rtd", ,"ContractData",O4, "PerCentNetLastTrade",, "T")/100 -> 0.01018956658 | Q4: https://finance.yahoo.com/quote/MA | S4: 0.01018956658 | V4: =RTD("cqg.rtd", ,"ContractData",O4, "LongDescription",, "T") -> Mastercard Inc. | Y4: 0.01018956658 | AA4: 1 | AB4: 1 | AD4: 0.01018956658
C5: S.US.ADP | D5: =RTD("cqg.rtd", ,"ContractData",C5, "LongDescription",, "T") -> Auto Data Processing Inc | E5: =RTD("cqg.rtd", ,"ContractData",C5, "Open",, "T") -> 177.46 | F5: =RTD("cqg.rtd", ,"ContractData",C5, "High",, "T") -> 177.81 | G5: =RTD("cqg.rtd", ,"ContractData",C5, "Low",, "T") -> 176.48 | H5: =RTD("cqg.rtd", ,"ContractData",C5, "LastTradeToday",, "T") -> 176.67 | I5: =RTD("cqg.rtd", ,"ContractData",C5, "NetLastTradeToday",, "T") -> 0.06 | J5: =RTD("cqg.rtd", ,"ContractData",C5, "PerCentNetLastTrade",, "T")/100 -> 0.000339731612 | K5: =RTD("cqg.rtd", ,"ContractData", C5, "T_CVol",, "T") -> 30002 | L5: 5 | M5: =RANK($J5,$J$1:J$73)+COUNTIF($J$1:J5,J5)-1 -> 47 | N5: S.US.ADP | O5: S.US.CDW | P5: =RTD("cqg.rtd", ,"ContractData",O5, "PerCentNetLastTrade",, "T")/100 -> 0.009995421944 | Q5: https://finance.yahoo.com/quote/CDW | S5: 0.009995421944 | V5: =RTD("cqg.rtd", ,"ContractData",O5, "LongDescription",, "T") -> CDW Corporation | Y5: 0.009995421944 | AA5: 1 | AB5: 1 | AD5: 0.009995421944
C6: S.US.ADSK | D6: =RTD("cqg.rtd", ,"ContractData",C6, "LongDescription",, "T") -> Autodesk Inc | E6: =RTD("cqg.rtd", ,"ContractData",C6, "Open",, "T") -> 300 | F6: =RTD("cqg.rtd", ,"ContractData",C6, "High",, "T") -> 301.73 | G6: =RTD("cqg.rtd", ,"ContractData",C6, "Low",, "T") -> 298.93 | H6: =RTD("cqg.rtd", ,"ContractData",C6, "LastTradeToday",, "T") -> 300.39 | I6: =RTD("cqg.rtd", ,"ContractData",C6, "NetLastTradeToday",, "T") -> 0.74 | J6: =RTD("cqg.rtd", ,"ContractData",C6, "PerCentNetLastTrade",, "T")/100 -> 0.002469547806 | K6: =RTD("cqg.rtd", ,"ContractData", C6, "T_CVol",, "T") -> 34532 | L6: 6 | M6: =RANK($J6,$J$1:J$73)+COUNTIF($J$1:J6,J6)-1 -> 34 | N6: S.US.ADSK | O6: S.US.V | P6: =RTD("cqg.rtd", ,"ContractData",O6, "PerCentNetLastTrade",, "T")/100 -> 0.009735220806 | Q6: https://finance.yahoo.com/quote/V | S6: 0.009735220806 | V6: =RTD("cqg.rtd", ,"ContractData",O6, "LongDescription",, "T") -> Visa Inc. | Y6: 0.009735220806 | AA6: 1 | AB6: 1 | AD6: 0.009735220806
C7: S.US.AKAM | D7: =RTD("cqg.rtd", ,"ContractData",C7, "LongDescription",, "T") -> Akamai Tech Inc | E7: =RTD("cqg.rtd", ,"ContractData",C7, "Open",, "T") -> 107.1 | F7: =RTD("cqg.rtd", ,"ContractData",C7, "High",, "T") -> 108.19 | G7: =RTD("cqg.rtd", ,"ContractData",C7, "Low",, "T") -> 107 | H7: =RTD("cqg.rtd", ,"ContractData",C7, "LastTradeToday",, "T") -> 108.09 | I7: =RTD("cqg.rtd", ,"ContractData",C7, "NetLastTradeToday",, "T") -> 0.81 | J7: =RTD("cqg.rtd", ,"ContractData",C7, "PerCentNetLastTrade",, "T")/100 -> 0.00755033557 | K7: =RTD("cqg.rtd", ,"ContractData", C7, "T_CVol",, "T") -> 71995 | L7: 7 | M7: =RANK($J7,$J$1:J$73)+COUNTIF($J$1:J7,J7)-1 -> 12 | N7: S.US.AKAM | O7: S.US.NVDA | P7: =RTD("cqg.rtd", ,"ContractData",O7, "PerCentNetLastTrade",, "T")/100 -> 0.009728682171 | Q7: https://finance.yahoo.com/quote/NVDA | S7: 0.009728682171 | V7: =RTD("cqg.rtd", ,"ContractData",O7, "LongDescription",, "T") -> NVIDIA Corp | Y7: 0.009728682171 | AA7: 1 | AB7: 1 | AD7: 0.009728682171
C8: S.US.AMAT | D8: =RTD("cqg.rtd", ,"ContractData",C8, "LongDescription",, "T") -> Applied Materials Inc | E8: =RTD("cqg.rtd", ,"ContractData",C8, "Open",, "T") -> 85.02 | F8: =RTD("cqg.rtd", ,"ContractData",C8, "High",, "T") -> 85.11 | G8: =RTD("cqg.rtd", ,"ContractData",C8, "Low",, "T") -> 84.36 | H8: =RTD("cqg.rtd", ,"ContractData",C8, "LastTradeToday",, "T") -> 84.57 | I8: =RTD("cqg.rtd", ,"ContractData",C8, "NetLastTradeToday",, "T") -> -0.3 | J8: =RTD("cqg.rtd", ,"ContractData",C8, "PerCentNetLastTrade",, "T")/100 -> -0.003534817957 | K8: =RTD("cqg.rtd", ,"ContractData", C8, "T_CVol",, "T") -> 222376 | L8: 8 | M8: =RANK($J8,$J$1:J$73)+COUNTIF($J$1:J8,J8)-1 -> 60 | N8: S.US.AMAT | O8: S.US.XLNX | P8: =RTD("cqg.rtd", ,"ContractData",O8, "PerCentNetLastTrade",, "T")/100 -> 0.009327303561 | Q8: https://finance.yahoo.com/quote/XLNX | S8: 0.009327303561 | V8: =RTD("cqg.rtd", ,"ContractData",O8, "LongDescription",, "T") -> Xilinx Inc | Y8: 0.009327303561 | AA8: 1 | AB8: 1 | AD8: 0.009327303561
C9: S.US.AMD | D9: =RTD("cqg.rtd", ,"ContractData",C9, "LongDescription",, "T") -> Advanced Micro Devices | E9: =RTD("cqg.rtd", ,"ContractData",C9, "Open",, "T") -> 91.66 | F9: =RTD("cqg.rtd", ,"ContractData",C9, "High",, "T") -> 92.36 | G9: =RTD("cqg.rtd", ,"ContractData",C9, "Low",, "T") -> 91.04 | H9: =RTD("cqg.rtd", ,"ContractData",C9, "LastTradeToday",, "T") -> 92.16 | I9: =RTD("cqg.rtd", ,"ContractData",C9, "NetLastTradeToday",, "T") -> 0.56 | J9: =RTD("cqg.rtd", ,"ContractData",C9, "PerCentNetLastTrade",, "T")/100 -> 0.006113537118 | K9: =RTD("cqg.rtd", ,"ContractData", C9, "T_CVol",, "T") -> 2950331 | L9: 9 | M9: =RANK($J9,$J$1:J$73)+COUNTIF($J$1:J9,J9)-1 -> 18 | N9: S.US.AMD | O9: S.US.MSFT | P9: =RTD("cqg.rtd", ,"ContractData",O9, "PerCentNetLastTrade",, "T")/100 -> 0.008668207681 | Q9: https://finance.yahoo.com/quote/MSFT | S9: 0.008668207681 | V9: =RTD("cqg.rtd", ,"ContractData",O9, "LongDescription",, "T") -> Microsoft Corporation | Y9: 0.008668207681 | AA9: 1 | AB9: 1 | AD9: 0.008668207681
C10: S.US.ANET | D10: =RTD("cqg.rtd", ,"ContractData",C10, "LongDescription",, "T") -> Arista Networks, Inc. | E10: =RTD("cqg.rtd", ,"ContractData",C10, "Open",, "T") -> 291.79 | F10: =RTD("cqg.rtd", ,"ContractData",C10, "High",, "T") -> 292.5 | G10: =RTD("cqg.rtd", ,"ContractData",C10, "Low",, "T") -> 291.04 | H10: =RTD("cqg.rtd", ,"ContractData",C10, "LastTradeToday",, "T") -> 291.62 | I10: =RTD("cqg.rtd", ,"ContractData",C10, "NetLastTradeToday",, "T") -> 0.68 | J10: =RTD("cqg.rtd", ,"ContractData",C10, "PerCentNetLastTrade",, "T")/100 -> 0.002337251667 | K10: =RTD("cqg.rtd", ,"ContractData", C10, "T_CVol",, "T") -> 15895 | L10: 10 | M10: =RANK($J10,$J$1:J$73)+COUNTIF($J$1:J10,J10)-1 -> 35 | N10: S.US.ANET | O10: S.US.INTU | P10: =RTD("cqg.rtd", ,"ContractData",O10, "PerCentNetLastTrade",, "T")/100 -> 0.008658690176 | Q10: https://finance.yahoo.com/quote/INTU | S10: 0.008658690176 | V10: =RTD("cqg.rtd", ,"ContractData",O10, "LongDescription",, "T") -> Intuit Corp | Y10: 0.008658690176 | AA10: 1 | AB10: 1 | AD10: 0.008658690176
C11: S.US.ANSS | D11: =RTD("cqg.rtd", ,"ContractData",C11, "LongDescription",, "T") -> ANSYS Inc | E11: =RTD("cqg.rtd", ,"ContractData",C11, "Open",, "T") -> 365 | F11: =RTD("cqg.rtd", ,"ContractData",C11, "High",, "T") -> 366.69 | G11: =RTD("cqg.rtd", ,"ContractData",C11, "Low",, "T") -> 364.69 | H11: =RTD("cqg.rtd", ,"ContractData",C11, "LastTradeToday",, "T") -> 365.97 | I11: =RTD("cqg.rtd", ,"ContractData",C11, "NetLastTradeToday",, "T") -> 2.25 | J11: =RTD("cqg.rtd", ,"ContractData",C11, "PerCentNetLastTrade",, "T")/100 -> 0.006186077202 | K11: =RTD("cqg.rtd", ,"ContractData", C11, "T_CVol",, "T") -> 13242 | L11: 11 | M11: =RANK($J11,$J$1:J$73)+COUNTIF($J$1:J11,J11)-1 -> 17 | N11: S.US.ANSS | O11: S.US.GPN | P11: =RTD("cqg.rtd", ,"ContractData",O11, "PerCentNetLastTrade",, "T")/100 -> 0.008278304144 | Q11: https://finance.yahoo.com/quote/GPN | S11: 0.008278304144 | V11: =RTD("cqg.rtd", ,"ContractData",O11, "LongDescription",, "T") -> Global Payments | Y11: 0.008278304144 | AA11: 1 | AB11: 1 | AD11: 0.008278304144
C12: S.US.APH | D12: =RTD("cqg.rtd", ,"ContractData",C12, "LongDescription",, "T") -> Amphenol | E12: =RTD("cqg.rtd", ,"ContractData",C12, "Open",, "T") -> 130.29 | F12: =RTD("cqg.rtd", ,"ContractData",C12, "High",, "T") -> 130.3 | G12: =RTD("cqg.rtd", ,"ContractData",C12, "Low",, "T") -> 129.32 | H12: =RTD("cqg.rtd", ,"ContractData",C12, "LastTradeToday",, "T") -> 129.89 | I12: =RTD("cqg.rtd", ,"ContractData",C12, "NetLastTradeToday",, "T") -> 0.05 | J12: =RTD("cqg.rtd", ,"ContractData",C12, "PerCentNetLastTrade",, "T")/100 -> 0.0003850893407 | K12: =RTD("cqg.rtd", ,"ContractData", C12, "T_CVol",, "T") -> 59664 | L12: 12 | M12: =RANK($J12,$J$1:J$73)+COUNTIF($J$1:J12,J12)-1 -> 46 | N12: S.US.APH | O12: S.US.AKAM | P12: =RTD("cqg.rtd", ,"ContractData",O12, "PerCentNetLastTrade",, "T")/100 -> 0.00755033557 | Q12: https://finance.yahoo.com/quote/AKAM | S12: 0.00755033557 | V12: =RTD("cqg.rtd", ,"ContractData",O12, "LongDescription",, "T") -> Akamai Tech Inc | Y12: 0.00755033557 | AA12: 1 | AB12: 1 | AD12: 0.00755033557
C13: S.US.AVGO | D13: =RTD("cqg.rtd", ,"ContractData",C13, "LongDescription",, "T") -> Broadcom Inc. | E13: =RTD("cqg.rtd", ,"ContractData",C13, "Open",, "T") -> 435.83 | F13: =RTD("cqg.rtd", ,"ContractData",C13, "High",, "T") -> 435.83 | G13: =RTD("cqg.rtd", ,"ContractData",C13, "Low",, "T") -> 432.47 | H13: =RTD("cqg.rtd", ,"ContractData",C13, "LastTradeToday",, "T") -> 433.13 | I13: =RTD("cqg.rtd", ,"ContractData",C13, "NetLastTradeToday",, "T") -> 1.25 | J13: =RTD("cqg.rtd", ,"ContractData",C13, "PerCentNetLastTrade",, "T")/100 -> 0.002894322497 | K13: =RTD("cqg.rtd", ,"ContractData", C13, "T_CVol",, "T") -> 56538 | L13: 13 | M13: =RANK($J13,$J$1:J$73)+COUNTIF($J$1:J13,J13)-1 -> 31 | N13: S.US.AVGO | O13: S.US.VRSN | P13: =RTD("cqg.rtd", ,"ContractData",O13, "PerCentNetLastTrade",, "T")/100 -> 0.007149446494 | Q13: https://finance.yahoo.com/quote/VRSN | S13: 0.007149446494 | V13: =RTD("cqg.rtd", ,"ContractData",O13, "LongDescription",, "T") -> Verisign Inc | Y13: 0.007149446494 | AA13: 1 | AB13: 1 | AD13: 0.007149446494
C14: S.US.BR | D14: =RTD("cqg.rtd", ,"ContractData",C14, "LongDescription",, "T") -> Broadridge Financial Solutions | E14: =RTD("cqg.rtd", ,"ContractData",C14, "Open",, "T") -> 153.21 | F14: =RTD("cqg.rtd", ,"ContractData",C14, "High",, "T") -> 153.62 | G14: =RTD("cqg.rtd", ,"ContractData",C14, "Low",, "T") -> 152.92 | H14: =RTD("cqg.rtd", ,"ContractData",C14, "LastTradeToday",, "T") -> 152.92 | I14: =RTD("cqg.rtd", ,"ContractData",C14, "NetLastTradeToday",, "T") -> 0.86 | J14: =RTD("cqg.rtd", ,"ContractData",C14, "PerCentNetLastTrade",, "T")/100 -> 0.005655662239 | K14: =RTD("cqg.rtd", ,"ContractData", C14, "T_CVol",, "T") -> 12523 | L14: 14 | M14: =RANK($J14,$J$1:J$73)+COUNTIF($J$1:J14,J14)-1 -> 19 | N14: S.US.BR | O14: S.US.QCOM | P14: =RTD("cqg.rtd", ,"ContractData",O14, "PerCentNetLastTrade",, "T")/100 -> 0.007107080005 | Q14: https://finance.yahoo.com/quote/QCOM | S14: 0.007107080005 | V14: =RTD("cqg.rtd", ,"ContractData",O14, "LongDescription",, "T") -> QUALCOMM Inc | Y14: 0.007107080005 | AA14: 1 | AB14: 1 | AD14: 0.007107080005
C15: S.US.CDNS | D15: =RTD("cqg.rtd", ,"ContractData",C15, "LongDescription",, "T") -> Cadence Design Systems, Inc | E15: =RTD("cqg.rtd", ,"ContractData",C15, "Open",, "T") -> 135.13 | F15: =RTD("cqg.rtd", ,"ContractData",C15, "High",, "T") -> 135.75 | G15: =RTD("cqg.rtd", ,"ContractData",C15, "Low",, "T") -> 135.03 | H15: =RTD("cqg.rtd", ,"ContractData",C15, "LastTradeToday",, "T") -> 135.39 | I15: =RTD("cqg.rtd", ,"ContractData",C15, "NetLastTradeToday",, "T") -> 0.63 | J15: =RTD("cqg.rtd", ,"ContractData",C15, "PerCentNetLastTrade",, "T")/100 -> 0.004674977738 | K15: =RTD("cqg.rtd", ,"ContractData", C15, "T_CVol",, "T") -> 46596 | L15: 15 | M15: =RANK($J15,$J$1:J$73)+COUNTIF($J$1:J15,J15)-1 -> 25 | N15: S.US.CDNS | O15: S.US.AAPL | P15: =RTD("cqg.rtd", ,"ContractData",O15, "PerCentNetLastTrade",, "T")/100 -> 0.007023191162 | Q15: https://finance.yahoo.com/quote/AAPL | S15: 0.007023191162 | V15: =RTD("cqg.rtd", ,"ContractData",O15, "LongDescription",, "T") -> Apple Inc | Y15: 0.007023191162 | AA15: 1 | AB15: 1 | AD15: 0.007023191162
C16: S.US.CDW | D16: =RTD("cqg.rtd", ,"ContractData",C16, "LongDescription",, "T") -> CDW Corporation | E16: =RTD("cqg.rtd", ,"ContractData",C16, "Open",, "T") -> 132.01 | F16: =RTD("cqg.rtd", ,"ContractData",C16, "High",, "T") -> 132.88 | G16: =RTD("cqg.rtd", ,"ContractData",C16, "Low",, "T") -> 131.56 | H16: =RTD("cqg.rtd", ,"ContractData",C16, "LastTradeToday",, "T") -> 132.37 | I16: =RTD("cqg.rtd", ,"ContractData",C16, "NetLastTradeToday",, "T") -> 1.31 | J16: =RTD("cqg.rtd", ,"ContractData",C16, "PerCentNetLastTrade",, "T")/100 -> 0.009995421944 | K16: =RTD("cqg.rtd", ,"ContractData", C16, "T_CVol",, "T") -> 38357 | L16: 16 | M16: =RANK($J16,$J$1:J$73)+COUNTIF($J$1:J16,J16)-1 -> 5 | N16: S.US.CDW | O16: S.US.MSI | P16: =RTD("cqg.rtd", ,"ContractData",O16, "PerCentNetLastTrade",, "T")/100 -> 0.006788265156 | Q16: https://finance.yahoo.com/quote/MSI | S16: 0.006788265156 | V16: =RTD("cqg.rtd", ,"ContractData",O16, "LongDescription",, "T") -> Motorola Solutions, Inc. | Y16: 0.006788265156 | AA16: 1 | AB16: 1 | AD16: 0.006788265156
C17: S.US.CRM | D17: =RTD("cqg.rtd", ,"ContractData",C17, "LongDescription",, "T") -> Salesforce.com Inc | E17: =RTD("cqg.rtd", ,"ContractData",C17, "Open",, "T") -> 224.97 | F17: =RTD("cqg.rtd", ,"ContractData",C17, "High",, "T") -> 225.3 | G17: =RTD("cqg.rtd", ,"ContractData",C17, "Low",, "T") -> 223.25 | H17: =RTD("cqg.rtd", ,"ContractData",C17, "LastTradeToday",, "T") -> 224.44 | I17: =RTD("cqg.rtd", ,"ContractData",C17, "NetLastTradeToday",, "T") -> -0.2 | J17: =RTD("cqg.rtd", ,"ContractData",C17, "PerCentNetLastTrade",, "T")/100 -> -0.0008903133903 | K17: =RTD("cqg.rtd", ,"ContractData", C17, "T_CVol",, "T") -> 672562 | L17: 17 | M17: =RANK($J17,$J$1:J$73)+COUNTIF($J$1:J17,J17)-1 -> 51 | N17: S.US.CRM | O17: S.US.ANSS | P17: =RTD("cqg.rtd", ,"ContractData",O17, "PerCentNetLastTrade",, "T")/100 -> 0.006186077202 | Q17: https://finance.yahoo.com/quote/ANSS | S17: 0.006186077202 | V17: =RTD("cqg.rtd", ,"ContractData",O17, "LongDescription",, "T") -> ANSYS Inc | Y17: 0.006186077202 | AA17: 1 | AB17: 1 | AD17: 0.006186077202
C18: S.US.CSCO | D18: =RTD("cqg.rtd", ,"ContractData",C18, "LongDescription",, "T") -> Cisco Systems Inc | E18: =RTD("cqg.rtd", ,"ContractData",C18, "Open",, "T") -> 44.97 | F18: =RTD("cqg.rtd", ,"ContractData",C18, "High",, "T") -> 45.24 | G18: =RTD("cqg.rtd", ,"ContractData",C18, "Low",, "T") -> 44.88 | H18: =RTD("cqg.rtd", ,"ContractData",C18, "LastTradeToday",, "T") -> 45.06 | I18: =RTD("cqg.rtd", ,"ContractData",C18, "NetLastTradeToday",, "T") -> 0.14 | J18: =RTD("cqg.rtd", ,"ContractData",C18, "PerCentNetLastTrade",, "T")/100 -> 0.003116651825 | K18: =RTD("cqg.rtd", ,"ContractData", C18, "T_CVol",, "T") -> 1360377 | L18: 18 | M18: =RANK($J18,$J$1:J$73)+COUNTIF($J$1:J18,J18)-1 -> 29 | N18: S.US.CSCO | O18: S.US.AMD | P18: =RTD("cqg.rtd", ,"ContractData",O18, "PerCentNetLastTrade",, "T")/100 -> 0.006113537118 | Q18: https://finance.yahoo.com/quote/AMD | S18: 0.006113537118 | V18: =RTD("cqg.rtd", ,"ContractData",O18, "LongDescription",, "T") -> Advanced Micro Devices | Y18: 0.006113537118 | AA18: 1 | AB18: 1 | AD18: 0.006113537118
C19: S.US.CTSH | D19: =RTD("cqg.rtd", ,"ContractData",C19, "LongDescription",, "T") -> Cognizant Tech Solutions Corp | E19: =RTD("cqg.rtd", ,"ContractData",C19, "Open",, "T") -> 82.02 | F19: =RTD("cqg.rtd", ,"ContractData",C19, "High",, "T") -> 82.08 | G19: =RTD("cqg.rtd", ,"ContractData",C19, "Low",, "T") -> 81.02 | H19: =RTD("cqg.rtd", ,"ContractData",C19, "LastTradeToday",, "T") -> 81.02 | I19: =RTD("cqg.rtd", ,"ContractData",C19, "NetLastTradeToday",, "T") -> -0.35 | J19: =RTD("cqg.rtd", ,"ContractData",C19, "PerCentNetLastTrade",, "T")/100 -> -0.00430133956 | K19: =RTD("cqg.rtd", ,"ContractData", C19, "T_CVol",, "T") -> 58307 | L19: 19 | M19: =RANK($J19,$J$1:J$73)+COUNTIF($J$1:J19,J19)-1 -> 62 | N19: S.US.CTSH | O19: S.US.BR | P19: =RTD("cqg.rtd", ,"ContractData",O19, "PerCentNetLastTrade",, "T")/100 -> 0.005655662239 | Q19: https://finance.yahoo.com/quote/BR | S19: 0.005655662239 | V19: =RTD("cqg.rtd", ,"ContractData",O19, "LongDescription",, "T") -> Broadridge Financial Solutions | Y19: 0.005655662239 | AA19: 1 | AB19: 1 | AD19: 0.005655662239
C20: S.US.CTXS | D20: =RTD("cqg.rtd", ,"ContractData",C20, "LongDescription",, "T") -> Citrix Systems Inc | E20: =RTD("cqg.rtd", ,"ContractData",C20, "Open",, "T") -> 133.94 | F20: =RTD("cqg.rtd", ,"ContractData",C20, "High",, "T") -> 134.29 | G20: =RTD("cqg.rtd", ,"ContractData",C20, "Low",, "T") -> 133.09 | H20: =RTD("cqg.rtd", ,"ContractData",C20, "LastTradeToday",, "T") -> 133.69 | I20: =RTD("cqg.rtd", ,"ContractData",C20, "NetLastTradeToday",, "T") -> 0.67 | J20: =RTD("cqg.rtd", ,"ContractData",C20, "PerCentNetLastTrade",, "T")/100 -> 0.005036836566 | K20: =RTD("cqg.rtd", ,"ContractData", C20, "T_CVol",, "T") -> 42966 | L20: 20 | M20: =RANK($J20,$J$1:J$73)+COUNTIF($J$1:J20,J20)-1 -> 21 | N20: S.US.CTXS | O20: S.US.IT | P20: =RTD("cqg.rtd", ,"ContractData",O20, "PerCentNetLastTrade",, "T")/100 -> 0.005276050499 | Q20: https://finance.yahoo.com/quote/IT | S20: 0.005276050499 | V20: =RTD("cqg.rtd", ,"ContractData",O20, "LongDescription",, "T") -> Gartner Group | Y20: 0.005276050499 | AA20: 1 | AB20: 1 | AD20: 0.005276050499
C21: S.US.DXC | D21: =RTD("cqg.rtd", ,"ContractData",C21, "LongDescription",, "T") -> DXC Technology Company | E21: =RTD("cqg.rtd", ,"ContractData",C21, "Open",, "T") -> 24.2 | F21: =RTD("cqg.rtd", ,"ContractData",C21, "High",, "T") -> 24.2 | G21: =RTD("cqg.rtd", ,"ContractData",C21, "Low",, "T") -> 23.65 | H21: =RTD("cqg.rtd", ,"ContractData",C21, "LastTradeToday",, "T") -> 23.68 | I21: =RTD("cqg.rtd", ,"ContractData",C21, "NetLastTradeToday",, "T") -> -0.38 | J21: =RTD("cqg.rtd", ,"ContractData",C21, "PerCentNetLastTrade",, "T")/100 -> -0.01579384871 | K21: =RTD("cqg.rtd", ,"ContractData", C21, "T_CVol",, "T") -> 254827 | L21: 21 | M21: =RANK($J21,$J$1:J$73)+COUNTIF($J$1:J21,J21)-1 -> 73 | N21: S.US.DXC | O21: S.US.CTXS | P21: =RTD("cqg.rtd", ,"ContractData",O21, "PerCentNetLastTrade",, "T")/100 -> 0.005036836566 | Q21: https://finance.yahoo.com/quote/CTXS | S21: 0.005036836566 | V21: =RTD("cqg.rtd", ,"ContractData",O21, "LongDescription",, "T") -> Citrix Systems Inc | Y21: 0.005036836566 | AA21: 1 | AB21: 1 | AD21: =IFERROR(S21,"") -> 0.005036836566
C22: S.US.FFIV | D22: =RTD("cqg.rtd", ,"ContractData",C22, "LongDescription",, "T") -> F5 Networks Inc | E22: =RTD("cqg.rtd", ,"ContractData",C22, "Open",, "T") -> 177.96 | F22: =RTD("cqg.rtd", ,"ContractData",C22, "High",, "T") -> 178.09 | G22: =RTD("cqg.rtd", ,"ContractData",C22, "Low",, "T") -> 176.56 | H22: =RTD("cqg.rtd", ,"ContractData",C22, "LastTradeToday",, "T") -> 177 | I22: =RTD("cqg.rtd", ,"ContractData",C22, "NetLastTradeToday",, "T") -> 0.56 | J22: =RTD("cqg.rtd", ,"ContractData",C22, "PerCentNetLastTrade",, "T")/100 -> 0.003173883473 | K22: =RTD("cqg.rtd", ,"ContractData", C22, "T_CVol",, "T") -> 35509 | L22: 22 | M22: =RANK($J22,$J$1:J$73)+COUNTIF($J$1:J22,J22)-1 -> 28 | N22: S.US.FFIV | O22: S.US.JKHY | P22: =RTD("cqg.rtd", ,"ContractData",O22, "PerCentNetLastTrade",, "T")/100 -> 0.004946465469 | Q22: https://finance.yahoo.com/quote/JKHY | S22: 0.004946465469 | V22: =RTD("cqg.rtd", ,"ContractData",O22, "LongDescription",, "T") -> Jack Henry/Associates Inc | Y22: 0.004946465469 | AA22: 1 | AB22: 1 | AD22: 0.004946465469
C23: S.US.FIS | D23: =RTD("cqg.rtd", ,"ContractData",C23, "LongDescription",, "T") -> Fidelity National Info Services | E23: =RTD("cqg.rtd", ,"ContractData",C23, "Open",, "T") -> 141.71 | F23: =RTD("cqg.rtd", ,"ContractData",C23, "High",, "T") -> 142.04 | G23: =RTD("cqg.rtd", ,"ContractData",C23, "Low",, "T") -> 141.12 | H23: =RTD("cqg.rtd", ,"ContractData",C23, "LastTradeToday",, "T") -> 142 | I23: =RTD("cqg.rtd", ,"ContractData",C23, "NetLastTradeToday",, "T") -> 1.72 | J23: =RTD("cqg.rtd", ,"ContractData",C23, "PerCentNetLastTrade",, "T")/100 -> 0.0122611919 | K23: =RTD("cqg.rtd", ,"ContractData", C23, "T_CVol",, "T") -> 159803 | L23: 23 | M23: =RANK($J23,$J$1:J$73)+COUNTIF($J$1:J23,J23)-1 -> 2 | N23: S.US.FIS | O23: S.US.ORCL | P23: =RTD("cqg.rtd", ,"ContractData",O23, "PerCentNetLastTrade",, "T")/100 -> 0.004932942809 | Q23: https://finance.yahoo.com/quote/ORCL | S23: 0.004932942809 | V23: =RTD("cqg.rtd", ,"ContractData",O23, "LongDescription",, "T") -> Oracle Corporation | Y23: 0.004932942809 | AA23: 1 | AB23: 1 | AD23: 0.004932942809
C24: S.US.FISV | D24: =RTD("cqg.rtd", ,"ContractData",C24, "LongDescription",, "T") -> FISERV Inc | E24: =RTD("cqg.rtd", ,"ContractData",C24, "Open",, "T") -> 113.48 | F24: =RTD("cqg.rtd", ,"ContractData",C24, "High",, "T") -> 113.95 | G24: =RTD("cqg.rtd", ,"ContractData",C24, "Low",, "T") -> 112.95 | H24: =RTD("cqg.rtd", ,"ContractData",C24, "LastTradeToday",, "T") -> 113.03 | I24: =RTD("cqg.rtd", ,"ContractData",C24, "NetLastTradeToday",, "T") -> 0.36 | J24: =RTD("cqg.rtd", ,"ContractData",C24, "PerCentNetLastTrade",, "T")/100 -> 0.00319517174 | K24: =RTD("cqg.rtd", ,"ContractData", C24, "T_CVol",, "T") -> 152459 | L24: 24 | M24: =RANK($J24,$J$1:J$73)+COUNTIF($J$1:J24,J24)-1 -> 27 | N24: S.US.FISV | O24: S.US.FLT | P24: =RTD("cqg.rtd", ,"ContractData",O24, "PerCentNetLastTrade",, "T")/100 -> 0.004900526624 | Q24: https://finance.yahoo.com/quote/FLT | S24: 0.004900526624 | V24: =RTD("cqg.rtd", ,"ContractData",O24, "LongDescription",, "T") -> Fleetcor Technologies, Inc. | Y24: 0.004900526624 | AA24: 1 | AB24: 1 | AD24: =IFERROR(S24,"") -> 0.004900526624
C25: S.US.FLIR | D25: =RTD("cqg.rtd", ,"ContractData",C25, "LongDescription",, "T") -> FLIR Systems Inc | E25: =RTD("cqg.rtd", ,"ContractData",C25, "Open",, "T") -> 44.54 | F25: =RTD("cqg.rtd", ,"ContractData",C25, "High",, "T") -> 44.78 | G25: =RTD("cqg.rtd", ,"ContractData",C25, "Low",, "T") -> 43.65 | H25: =RTD("cqg.rtd", ,"ContractData",C25, "LastTradeToday",, "T") -> 43.99 | I25: =RTD("cqg.rtd", ,"ContractData",C25, "NetLastTradeToday",, "T") -> -0.55 | J25: =RTD("cqg.rtd", ,"ContractData",C25, "PerCentNetLastTrade",, "T")/100 -> -0.01232354918 | K25: =RTD("cqg.rtd", ,"ContractData", C25, "T_CVol",, "T") -> 99635 | L25: 25 | M25: =RANK($J25,$J$1:J$73)+COUNTIF($J$1:J25,J25)-1 -> 72 | N25: S.US.FLIR | O25: S.US.CDNS | P25: =RTD("cqg.rtd", ,"ContractData",O25, "PerCentNetLastTrade",, "T")/100 -> 0.004674977738 | Q25: https://finance.yahoo.com/quote/CDNS | S25: 0.004674977738 | V25: =RTD("cqg.rtd", ,"ContractData",O25, "LongDescription",, "T") -> Cadence Design Systems, Inc | Y25: 0.004674977738 | AA25: 1 | AB25: 1 | AD25: 0.004674977738
C26: S.US.FLT | D26: =RTD("cqg.rtd", ,"ContractData",C26, "LongDescription",, "T") -> Fleetcor Technologies, Inc. | E26: =RTD("cqg.rtd", ,"ContractData",C26, "Open",, "T") -> 275.32 | F26: =RTD("cqg.rtd", ,"ContractData",C26, "High",, "T") -> 275.32 | G26: =RTD("cqg.rtd", ,"ContractData",C26, "Low",, "T") -> 273.64 | H26: =RTD("cqg.rtd", ,"ContractData",C26, "LastTradeToday",, "T") -> 274.78 | I26: =RTD("cqg.rtd", ,"ContractData",C26, "NetLastTradeToday",, "T") -> 1.34 | J26: =RTD("cqg.rtd", ,"ContractData",C26, "PerCentNetLastTrade",, "T")/100 -> 0.004900526624 | K26: =RTD("cqg.rtd", ,"ContractData", C26, "T_CVol",, "T") -> 9345 | L26: 26 | M26: =RANK($J26,$J$1:J$73)+COUNTIF($J$1:J26,J26)-1 -> 24 | N26: S.US.FLT | O26: S.US.TXN | P26: =RTD("cqg.rtd", ,"ContractData",O26, "PerCentNetLastTrade",, "T")/100 -> 0.003530067505 | Q26: https://finance.yahoo.com/quote/TXN | S26: 0.003530067505 | V26: =RTD("cqg.rtd", ,"ContractData",O26, "LongDescription",, "T") -> Texas Instruments Inc | Y26: 0.003530067505 | AA26: 1 | AB26: 1 | AD26: 0.003530067505
C27: S.US.FTNT | D27: =RTD("cqg.rtd", ,"ContractData",C27, "LongDescription",, "T") -> Fortinet, Inc. | E27: =RTD("cqg.rtd", ,"ContractData",C27, "Open",, "T") -> 150 | F27: =RTD("cqg.rtd", ,"ContractData",C27, "High",, "T") -> 150.84 | G27: =RTD("cqg.rtd", ,"ContractData",C27, "Low",, "T") -> 149.21 | H27: =RTD("cqg.rtd", ,"ContractData",C27, "LastTradeToday",, "T") -> 149.43 | I27: =RTD("cqg.rtd", ,"ContractData",C27, "NetLastTradeToday",, "T") -> 0.14 | J27: =RTD("cqg.rtd", ,"ContractData",C27, "PerCentNetLastTrade",, "T")/100 -> 0.0009377721214 | K27: =RTD("cqg.rtd", ,"ContractData", C27, "T_CVol",, "T") -> 56032 | L27: 27 | M27: =RANK($J27,$J$1:J$73)+COUNTIF($J$1:J27,J27)-1 -> 42 | N27: S.US.FTNT | O27: S.US.FISV | P27: =RTD("cqg.rtd", ,"ContractData",O27, "PerCentNetLastTrade",, "T")/100 -> 0.00319517174 | Q27: https://finance.yahoo.com/quote/FISV | S27: 0.00319517174 | V27: =RTD("cqg.rtd", ,"ContractData",O27, "LongDescription",, "T") -> FISERV Inc | Y27: 0.00319517174 | AA27: 1 | AB27: 1 | AD27: 0.00319517174
C28: S.US.GLW | D28: =RTD("cqg.rtd", ,"ContractData",C28, "LongDescription",, "T") -> Corning Incorporated | E28: =RTD("cqg.rtd", ,"ContractData",C28, "Open",, "T") -> 36.38 | F28: =RTD("cqg.rtd", ,"ContractData",C28, "High",, "T") -> 36.38 | G28: =RTD("cqg.rtd", ,"ContractData",C28, "Low",, "T") -> 36.1 | H28: =RTD("cqg.rtd", ,"ContractData",C28, "LastTradeToday",, "T") -> 36.13 | I28: =RTD("cqg.rtd", ,"ContractData",C28, "NetLastTradeToday",, "T") -> -0.06 | J28: =RTD("cqg.rtd", ,"ContractData",C28, "PerCentNetLastTrade",, "T")/100 -> -0.001657916552 | K28: =RTD("cqg.rtd", ,"ContractData", C28, "T_CVol",, "T") -> 83540 | L28: 28 | M28: =RANK($J28,$J$1:J$73)+COUNTIF($J$1:J28,J28)-1 -> 53 | N28: S.US.GLW | O28: S.US.FFIV | P28: =RTD("cqg.rtd", ,"ContractData",O28, "PerCentNetLastTrade",, "T")/100 -> 0.003173883473 | Q28: https://finance.yahoo.com/quote/FFIV | S28: 0.003173883473 | V28: =RTD("cqg.rtd", ,"ContractData",O28, "LongDescription",, "T") -> F5 Networks Inc | Y28: 0.003173883473 | AA28: 1 | AB28: 1 | AD28: 0.003173883473
C29: S.US.GPN | D29: =RTD("cqg.rtd", ,"ContractData",C29, "LongDescription",, "T") -> Global Payments | E29: =RTD("cqg.rtd", ,"ContractData",C29, "Open",, "T") -> 210 | F29: =RTD("cqg.rtd", ,"ContractData",C29, "High",, "T") -> 211.12 | G29: =RTD("cqg.rtd", ,"ContractData",C29, "Low",, "T") -> 209.7 | H29: =RTD("cqg.rtd", ,"ContractData",C29, "LastTradeToday",, "T") -> 210.71 | I29: =RTD("cqg.rtd", ,"ContractData",C29, "NetLastTradeToday",, "T") -> 1.73 | J29: =RTD("cqg.rtd", ,"ContractData",C29, "PerCentNetLastTrade",, "T")/100 -> 0.008278304144 | K29: =RTD("cqg.rtd", ,"ContractData", C29, "T_CVol",, "T") -> 88348 | L29: 29 | M29: =RANK($J29,$J$1:J$73)+COUNTIF($J$1:J29,J29)-1 -> 11 | N29: S.US.GPN | O29: S.US.CSCO | P29: =RTD("cqg.rtd", ,"ContractData",O29, "PerCentNetLastTrade",, "T")/100 -> 0.003116651825 | Q29: https://finance.yahoo.com/quote/CSCO | S29: 0.003116651825 | V29: =RTD("cqg.rtd", ,"ContractData",O29, "LongDescription",, "T") -> Cisco Systems Inc | Y29: 0.003116651825 | AA29: 1 | AB29: 1 | AD29: 0.003116651825
C30: S.US.HPE | D30: =RTD("cqg.rtd", ,"ContractData",C30, "LongDescription",, "T") -> Hewlett Packard Enterprise Company | E30: =RTD("cqg.rtd", ,"ContractData",C30, "Open",, "T") -> 11.84 | F30: =RTD("cqg.rtd", ,"ContractData",C30, "High",, "T") -> 11.85 | G30: =RTD("cqg.rtd", ,"ContractData",C30, "Low",, "T") -> 11.72 | H30: =RTD("cqg.rtd", ,"ContractData",C30, "LastTradeToday",, "T") -> 11.76 | I30: =RTD("cqg.rtd", ,"ContractData",C30, "NetLastTradeToday",, "T") -> -0.03 | J30: =RTD("cqg.rtd", ,"ContractData",C30, "PerCentNetLastTrade",, "T")/100 -> -0.002544529262 | K30: =RTD("cqg.rtd", ,"ContractData", C30, "T_CVol",, "T") -> 324244 | L30: 30 | M30: =RANK($J30,$J$1:J$73)+COUNTIF($J$1:J30,J30)-1 -> 57 | N30: S.US.HPE | O30: S.US.SNPS | P30: =RTD("cqg.rtd", ,"ContractData",O30, "PerCentNetLastTrade",, "T")/100 -> 0.00296689569 | Q30: https://finance.yahoo.com/quote/SNPS | S30: 0.00296689569 | V30: =RTD("cqg.rtd", ,"ContractData",O30, "LongDescription",, "T") -> Synopsis | Y30: 0.00296689569 | AA30: 1 | AB30: 1 | AD30: 0.00296689569
C31: S.US.HPQ | D31: =RTD("cqg.rtd", ,"ContractData",C31, "LongDescription",, "T") -> Hewlett-Packard Company | E31: =RTD("cqg.rtd", ,"ContractData",C31, "Open",, "T") -> 24.27 | F31: =RTD("cqg.rtd", ,"ContractData",C31, "High",, "T") -> 24.42 | G31: =RTD("cqg.rtd", ,"ContractData",C31, "Low",, "T") -> 24.15 | H31: =RTD("cqg.rtd", ,"ContractData",C31, "LastTradeToday",, "T") -> 24.21 | I31: =RTD("cqg.rtd", ,"ContractData",C31, "NetLastTradeToday",, "T") -> -0.06 | J31: =RTD("cqg.rtd", ,"ContractData",C31, "PerCentNetLastTrade",, "T")/100 -> -0.002472187886 | K31: =RTD("cqg.rtd", ,"ContractData", C31, "T_CVol",, "T") -> 407419 | L31: 31 | M31: =RANK($J31,$J$1:J$73)+COUNTIF($J$1:J31,J31)-1 -> 56 | N31: S.US.HPQ | O31: S.US.AVGO | P31: =RTD("cqg.rtd", ,"ContractData",O31, "PerCentNetLastTrade",, "T")/100 -> 0.002894322497 | Q31: https://finance.yahoo.com/quote/AVGO | S31: 0.002894322497 | V31: =RTD("cqg.rtd", ,"ContractData",O31, "LongDescription",, "T") -> Broadcom Inc. | Y31: 0.002894322497 | AA31: 1 | AB31: 1 | AD31: 0.002894322497
C32: S.US.IBM | D32: =RTD("cqg.rtd", ,"ContractData",C32, "LongDescription",, "T") -> International Business Machines | E32: =RTD("cqg.rtd", ,"ContractData",C32, "Open",, "T") -> 125.35 | F32: =RTD("cqg.rtd", ,"ContractData",C32, "High",, "T") -> 125.35 | G32: =RTD("cqg.rtd", ,"ContractData",C32, "Low",, "T") -> 124.54 | H32: =RTD("cqg.rtd", ,"ContractData",C32, "LastTradeToday",, "T") -> 124.7 | I32: =RTD("cqg.rtd", ,"ContractData",C32, "NetLastTradeToday",, "T") -> -0.12 | J32: =RTD("cqg.rtd", ,"ContractData",C32, "PerCentNetLastTrade",, "T")/100 -> -0.0009613843935 | K32: =RTD("cqg.rtd", ,"ContractData", C32, "T_CVol",, "T") -> 160875 | L32: 32 | M32: =RANK($J32,$J$1:J$73)+COUNTIF($J$1:J32,J32)-1 -> 52 | N32: S.US.IBM | O32: S.US.WU | P32: =RTD("cqg.rtd", ,"ContractData",O32, "PerCentNetLastTrade",, "T")/100 -> 0.002763703363 | Q32: https://finance.yahoo.com/quote/WU | S32: 0.002763703363 | V32: =RTD("cqg.rtd", ,"ContractData",O32, "LongDescription",, "T") -> The Western Union Company | Y32: 0.002763703363 | AA32: 1 | AB32: 1 | AD32: 0.002763703363
C33: S.US.INTC | D33: =RTD("cqg.rtd", ,"ContractData",C33, "LongDescription",, "T") -> Intel Corporation | E33: =RTD("cqg.rtd", ,"ContractData",C33, "Open",, "T") -> 47.22 | F33: =RTD("cqg.rtd", ,"ContractData",C33, "High",, "T") -> 47.23 | G33: =RTD("cqg.rtd", ,"ContractData",C33, "Low",, "T") -> 46.91 | H33: =RTD("cqg.rtd", ,"ContractData",C33, "LastTradeToday",, "T") -> 47.19 | I33: =RTD("cqg.rtd", ,"ContractData",C33, "NetLastTradeToday",, "T") -> 0.12 | J33: =RTD("cqg.rtd", ,"ContractData",C33, "PerCentNetLastTrade",, "T")/100 -> 0.002549394519 | K33: =RTD("cqg.rtd", ,"ContractData", C33, "T_CVol",, "T") -> 1444934 | L33: 33 | M33: =RANK($J33,$J$1:J$73)+COUNTIF($J$1:J33,J33)-1 -> 33 | N33: S.US.INTC | O33: S.US.INTC | P33: =RTD("cqg.rtd", ,"ContractData",O33, "PerCentNetLastTrade",, "T")/100 -> 0.002549394519 | Q33: https://finance.yahoo.com/quote/INTC | S33: 0.002549394519 | V33: =RTD("cqg.rtd", ,"ContractData",O33, "LongDescription",, "T") -> Intel Corporation | Y33: 0.002549394519 | AA33: 1 | AB33: 1 | AD33: 0.002549394519
C34: S.US.INTU | D34: =RTD("cqg.rtd", ,"ContractData",C34, "LongDescription",, "T") -> Intuit Corp | E34: =RTD("cqg.rtd", ,"ContractData",C34, "Open",, "T") -> 383.2 | F34: =RTD("cqg.rtd", ,"ContractData",C34, "High",, "T") -> 384.76 | G34: =RTD("cqg.rtd", ,"ContractData",C34, "Low",, "T") -> 381.12 | H34: =RTD("cqg.rtd", ,"ContractData",C34, "LastTradeToday",, "T") -> 384.42 | I34: =RTD("cqg.rtd", ,"ContractData",C34, "NetLastTradeToday",, "T") -> 3.3 | J34: =RTD("cqg.rtd", ,"ContractData",C34, "PerCentNetLastTrade",, "T")/100 -> 0.008658690176 | K34: =RTD("cqg.rtd", ,"ContractData", C34, "T_CVol",, "T") -> 55128 | L34: 34 | M34: =RANK($J34,$J$1:J$73)+COUNTIF($J$1:J34,J34)-1 -> 10 | N34: S.US.INTU | O34: S.US.ADSK | P34: =RTD("cqg.rtd", ,"ContractData",O34, "PerCentNetLastTrade",, "T")/100 -> 0.002469547806 | Q34: https://finance.yahoo.com/quote/ADSK | S34: 0.002469547806 | V34: =RTD("cqg.rtd", ,"ContractData",O34, "LongDescription",, "T") -> Autodesk Inc | Y34: 0.002469547806 | AA34: 1 | AB34: 1 | AD34: 0.002469547806
C35: S.US.IPGP | D35: =RTD("cqg.rtd", ,"ContractData",C35, "LongDescription",, "T") -> IPG Photonics Corporation | E35: =RTD("cqg.rtd", ,"ContractData",C35, "Open",, "T") -> 227 | F35: =RTD("cqg.rtd", ,"ContractData",C35, "High",, "T") -> 227 | G35: =RTD("cqg.rtd", ,"ContractData",C35, "Low",, "T") -> 225.51 | H35: =RTD("cqg.rtd", ,"ContractData",C35, "LastTradeToday",, "T") -> 225.52 | I35: =RTD("cqg.rtd", ,"ContractData",C35, "NetLastTradeToday",, "T") -> 0.47 | J35: =RTD("cqg.rtd", ,"ContractData",C35, "PerCentNetLastTrade",, "T")/100 -> 0.002088424794 | K35: =RTD("cqg.rtd", ,"ContractData", C35, "T_CVol",, "T") -> 5076 | L35: 35 | M35: =RANK($J35,$J$1:J$73)+COUNTIF($J$1:J35,J35)-1 -> 36 | N35: S.US.IPGP | O35: S.US.ANET | P35: =RTD("cqg.rtd", ,"ContractData",O35, "PerCentNetLastTrade",, "T")/100 -> 0.002337251667 | Q35: https://finance.yahoo.com/quote/ANET | S35: 0.002337251667 | V35: =RTD("cqg.rtd", ,"ContractData",O35, "LongDescription",, "T") -> Arista Networks, Inc. | Y35: 0.002337251667 | AA35: 1 | AB35: 1 | AD35: 0.002337251667
C36: S.US.IT | D36: =RTD("cqg.rtd", ,"ContractData",C36, "LongDescription",, "T") -> Gartner Group | E36: =RTD("cqg.rtd", ,"ContractData",C36, "Open",, "T") -> 160.59 | F36: =RTD("cqg.rtd", ,"ContractData",C36, "High",, "T") -> 160.59 | G36: =RTD("cqg.rtd", ,"ContractData",C36, "Low",, "T") -> 159.35 | H36: =RTD("cqg.rtd", ,"ContractData",C36, "LastTradeToday",, "T") -> 160.05 | I36: =RTD("cqg.rtd", ,"ContractData",C36, "NetLastTradeToday",, "T") -> 0.84 | J36: =RTD("cqg.rtd", ,"ContractData",C36, "PerCentNetLastTrade",, "T")/100 -> 0.005276050499 | K36: =RTD("cqg.rtd", ,"ContractData", C36, "T_CVol",, "T") -> 4924 | L36: 36 | M36: =RANK($J36,$J$1:J$73)+COUNTIF($J$1:J36,J36)-1 -> 20 | N36: S.US.IT | O36: S.US.IPGP | P36: =RTD("cqg.rtd", ,"ContractData",O36, "PerCentNetLastTrade",, "T")/100 -> 0.002088424794 | Q36: https://finance.yahoo.com/quote/IPGP | S36: 0.002088424794 | V36: =RTD("cqg.rtd", ,"ContractData",O36, "LongDescription",, "T") -> IPG Photonics Corporation | Y36: 0.002088424794 | AA36: 1 | AB36: 1 | AD36: 0.002088424794
C37: S.US.JKHY | D37: =RTD("cqg.rtd", ,"ContractData",C37, "LongDescription",, "T") -> Jack Henry/Associates Inc | E37: =RTD("cqg.rtd", ,"ContractData",C37, "Open",, "T") -> 160.04 | F37: =RTD("cqg.rtd", ,"ContractData",C37, "High",, "T") -> 160.73 | G37: =RTD("cqg.rtd", ,"ContractData",C37, "Low",, "T") -> 160.03 | H37: =RTD("cqg.rtd", ,"ContractData",C37, "LastTradeToday",, "T") -> 160.5 | I37: =RTD("cqg.rtd", ,"ContractData",C37, "NetLastTradeToday",, "T") -> 0.79 | J37: =RTD("cqg.rtd", ,"ContractData",C37, "PerCentNetLastTrade",, "T")/100 -> 0.004946465469 | K37: =RTD("cqg.rtd", ,"ContractData", C37, "T_CVol",, "T") -> 15175 | L37: 37 | M37: =RANK($J37,$J$1:J$73)+COUNTIF($J$1:J37,J37)-1 -> 22 | N37: S.US.JKHY | O37: S.US.ADI | P37: =RTD("cqg.rtd", ,"ContractData",O37, "PerCentNetLastTrade",, "T")/100 -> 0.001866187448 | Q37: https://finance.yahoo.com/quote/ADI | S37: 0.001866187448 | V37: =RTD("cqg.rtd", ,"ContractData",O37, "LongDescription",, "T") -> Analog Devices Inc | Y37: 0.001866187448 | AA37: 1 | AB37: 1 | AD37: 0.001866187448
C38: S.US.JNPR | D38: =RTD("cqg.rtd", ,"ContractData",C38, "LongDescription",, "T") -> Juniper Networks, Inc. | E38: =RTD("cqg.rtd", ,"ContractData",C38, "Open",, "T") -> 22.62 | F38: =RTD("cqg.rtd", ,"ContractData",C38, "High",, "T") -> 22.64 | G38: =RTD("cqg.rtd", ,"ContractData",C38, "Low",, "T") -> 22.54 | H38: =RTD("cqg.rtd", ,"ContractData",C38, "LastTradeToday",, "T") -> 22.59 | I38: =RTD("cqg.rtd", ,"ContractData",C38, "NetLastTradeToday",, "T") -> 0.03 | J38: =RTD("cqg.rtd", ,"ContractData",C38, "PerCentNetLastTrade",, "T")/100 -> 0.001329787234 | K38: =RTD("cqg.rtd", ,"ContractData", C38, "T_CVol",, "T") -> 67124 | L38: 38 | M38: =RANK($J38,$J$1:J$73)+COUNTIF($J$1:J38,J38)-1 -> 40 | N38: S.US.JNPR | O38: S.US.TER | P38: =RTD("cqg.rtd", ,"ContractData",O38, "PerCentNetLastTrade",, "T")/100 -> 0.001613862227 | Q38: https://finance.yahoo.com/quote/TER | S38: 0.001613862227 | V38: =RTD("cqg.rtd", ,"ContractData",O38, "LongDescription",, "T") -> Teradyne Inc | Y38: 0.001613862227 | AA38: 1 | AB38: 1 | AD38: 0.001613862227
C39: S.US.KEYS | D39: =RTD("cqg.rtd", ,"ContractData",C39, "LongDescription",, "T") -> Keysight Technologies Inc. | E39: =RTD("cqg.rtd", ,"ContractData",C39, "Open",, "T") -> 132.14 | F39: =RTD("cqg.rtd", ,"ContractData",C39, "High",, "T") -> 132.42 | G39: =RTD("cqg.rtd", ,"ContractData",C39, "Low",, "T") -> 131.04 | H39: =RTD("cqg.rtd", ,"ContractData",C39, "LastTradeToday",, "T") -> 131.15 | I39: =RTD("cqg.rtd", ,"ContractData",C39, "NetLastTradeToday",, "T") -> -0.67 | J39: =RTD("cqg.rtd", ,"ContractData",C39, "PerCentNetLastTrade",, "T")/100 -> -0.005082688515 | K39: =RTD("cqg.rtd", ,"ContractData", C39, "T_CVol",, "T") -> 38294 | L39: 39 | M39: =RANK($J39,$J$1:J$73)+COUNTIF($J$1:J39,J39)-1 -> 64 | N39: S.US.KEYS | O39: S.US.MCHP | P39: =RTD("cqg.rtd", ,"ContractData",O39, "PerCentNetLastTrade",, "T")/100 -> 0.001467889908 | Q39: https://finance.yahoo.com/quote/MCHP | S39: 0.001467889908 | V39: =RTD("cqg.rtd", ,"ContractData",O39, "LongDescription",, "T") -> Microchip Technology Inc | Y39: 0.001467889908 | AA39: 1 | AB39: 1 | AD39: 0.001467889908
C40: S.US.KLAC | D40: =RTD("cqg.rtd", ,"ContractData",C40, "LongDescription",, "T") -> KLA Corporation | E40: =RTD("cqg.rtd", ,"ContractData",C40, "Open",, "T") -> 258.04 | F40: =RTD("cqg.rtd", ,"ContractData",C40, "High",, "T") -> 258.76 | G40: =RTD("cqg.rtd", ,"ContractData",C40, "Low",, "T") -> 256.18 | H40: =RTD("cqg.rtd", ,"ContractData",C40, "LastTradeToday",, "T") -> 256.51 | I40: =RTD("cqg.rtd", ,"ContractData",C40, "NetLastTradeToday",, "T") -> -1.07 | J40: =RTD("cqg.rtd", ,"ContractData",C40, "PerCentNetLastTrade",, "T")/100 -> -0.004154049227 | K40: =RTD("cqg.rtd", ,"ContractData", C40, "T_CVol",, "T") -> 27184 | L40: 40 | M40: =RANK($J40,$J$1:J$73)+COUNTIF($J$1:J40,J40)-1 -> 61 | N40: S.US.KLAC | O40: S.US.JNPR | P40: =RTD("cqg.rtd", ,"ContractData",O40, "PerCentNetLastTrade",, "T")/100 -> 0.001329787234 | Q40: https://finance.yahoo.com/quote/JNPR | S40: 0.001329787234 | V40: =RTD("cqg.rtd", ,"ContractData",O40, "LongDescription",, "T") -> Juniper Networks, Inc. | Y40: 0.001329787234 | AA40: 1 | AB40: 1 | AD40: 0.001329787234
C41: S.US.LDOS | D41: =RTD("cqg.rtd", ,"ContractData",C41, "LongDescription",, "T") -> Leidos Holdings, Inc. | E41: =RTD("cqg.rtd", ,"ContractData",C41, "Open",, "T") -> 105.42 | F41: =RTD("cqg.rtd", ,"ContractData",C41, "High",, "T") -> 105.55 | G41: =RTD("cqg.rtd", ,"ContractData",C41, "Low",, "T") -> 104.51 | H41: =RTD("cqg.rtd", ,"ContractData",C41, "LastTradeToday",, "T") -> 104.51 | I41: =RTD("cqg.rtd", ,"ContractData",C41, "NetLastTradeToday",, "T") -> -0.27 | J41: =RTD("cqg.rtd", ,"ContractData",C41, "PerCentNetLastTrade",, "T")/100 -> -0.002576827639 | K41: =RTD("cqg.rtd", ,"ContractData", C41, "T_CVol",, "T") -> 9103 | L41: 41 | M41: =RANK($J41,$J$1:J$73)+COUNTIF($J$1:J41,J41)-1 -> 58 | N41: S.US.LDOS | O41: S.US.MU | P41: =RTD("cqg.rtd", ,"ContractData",O41, "PerCentNetLastTrade",, "T")/100 -> 0.0009906594962 | Q41: https://finance.yahoo.com/quote/MU | S41: 0.0009906594962 | V41: =RTD("cqg.rtd", ,"ContractData",O41, "LongDescription",, "T") -> Micron Technology Inc | Y41: 0.0009906594962 | AA41: 1 | AB41: 1 | AD41: 0.0009906594962
C42: S.US.LRCX | D42: =RTD("cqg.rtd", ,"ContractData",C42, "LongDescription",, "T") -> LAM Research Corporation | E42: =RTD("cqg.rtd", ,"ContractData",C42, "Open",, "T") -> 475.66 | F42: =RTD("cqg.rtd", ,"ContractData",C42, "High",, "T") -> 477.01 | G42: =RTD("cqg.rtd", ,"ContractData",C42, "Low",, "T") -> 473.6 | H42: =RTD("cqg.rtd", ,"ContractData",C42, "LastTradeToday",, "T") -> 474.58 | I42: =RTD("cqg.rtd", ,"ContractData",C42, "NetLastTradeToday",, "T") -> -1.52 | J42: =RTD("cqg.rtd", ,"ContractData",C42, "PerCentNetLastTrade",, "T")/100 -> -0.003192606595 | K42: =RTD("cqg.rtd", ,"ContractData", C42, "T_CVol",, "T") -> 69217 | L42: 42 | M42: =RANK($J42,$J$1:J$73)+COUNTIF($J$1:J42,J42)-1 -> 59 | N42: S.US.LRCX | O42: S.US.FTNT | P42: =RTD("cqg.rtd", ,"ContractData",O42, "PerCentNetLastTrade",, "T")/100 -> 0.0009377721214 | Q42: https://finance.yahoo.com/quote/FTNT | S42: 0.0009377721214 | V42: =RTD("cqg.rtd", ,"ContractData",O42, "LongDescription",, "T") -> Fortinet, Inc. | Y42: 0.0009377721214 | AA42: 1 | AB42: 1 | AD42: 0.0009377721214
C43: S.US.MA | D43: =RTD("cqg.rtd", ,"ContractData",C43, "LongDescription",, "T") -> Mastercard Inc. | E43: =RTD("cqg.rtd", ,"ContractData",C43, "Open",, "T") -> 347.78 | F43: =RTD("cqg.rtd", ,"ContractData",C43, "High",, "T") -> 348.75 | G43: =RTD("cqg.rtd", ,"ContractData",C43, "Low",, "T") -> 346.49 | H43: =RTD("cqg.rtd", ,"ContractData",C43, "LastTradeToday",, "T") -> 347.98 | I43: =RTD("cqg.rtd", ,"ContractData",C43, "NetLastTradeToday",, "T") -> 3.51 | J43: =RTD("cqg.rtd", ,"ContractData",C43, "PerCentNetLastTrade",, "T")/100 -> 0.01018956658 | K43: =RTD("cqg.rtd", ,"ContractData", C43, "T_CVol",, "T") -> 169955 | L43: 43 | M43: =RANK($J43,$J$1:J$73)+COUNTIF($J$1:J43,J43)-1 -> 4 | N43: S.US.MA | O43: S.US.PAYX | P43: =RTD("cqg.rtd", ,"ContractData",O43, "PerCentNetLastTrade",, "T")/100 -> 0.0006362672322 | Q43: https://finance.yahoo.com/quote/PAYX | S43: 0.0006362672322 | V43: =RTD("cqg.rtd", ,"ContractData",O43, "LongDescription",, "T") -> Paychex Inc | Y43: 0.0006362672322 | AA43: 1 | AB43: 1 | AD43: 0.0006362672322
C44: S.US.MCHP | D44: =RTD("cqg.rtd", ,"ContractData",C44, "LongDescription",, "T") -> Microchip Technology Inc | E44: =RTD("cqg.rtd", ,"ContractData",C44, "Open",, "T") -> 137.53 | F44: =RTD("cqg.rtd", ,"ContractData",C44, "High",, "T") -> 137.53 | G44: =RTD("cqg.rtd", ,"ContractData",C44, "Low",, "T") -> 136.11 | H44: =RTD("cqg.rtd", ,"ContractData",C44, "LastTradeToday",, "T") -> 136.34 | I44: =RTD("cqg.rtd", ,"ContractData",C44, "NetLastTradeToday",, "T") -> 0.2 | J44: =RTD("cqg.rtd", ,"ContractData",C44, "PerCentNetLastTrade",, "T")/100 -> 0.001467889908 | K44: =RTD("cqg.rtd", ,"ContractData", C44, "T_CVol",, "T") -> 29709 | L44: 44 | M44: =RANK($J44,$J$1:J$73)+COUNTIF($J$1:J44,J44)-1 -> 39 | N44: S.US.MCHP | O44: S.US.ACN | P44: =RTD("cqg.rtd", ,"ContractData",O44, "PerCentNetLastTrade",, "T")/100 -> 0.0004621072089 | Q44: https://finance.yahoo.com/quote/ACN | S44: 0.0004621072089 | V44: =RTD("cqg.rtd", ,"ContractData",O44, "LongDescription",, "T") -> Accenture PLC Ireland | Y44: 0.0004621072089 | AA44: 1 | AB44: 1 | AD44: 0.0004621072089
C45: S.US.MSFT | D45: =RTD("cqg.rtd", ,"ContractData",C45, "LongDescription",, "T") -> Microsoft Corporation | E45: =RTD("cqg.rtd", ,"ContractData",C45, "Open",, "T") -> 226.31 | F45: =RTD("cqg.rtd", ,"ContractData",C45, "High",, "T") -> 227.18 | G45: =RTD("cqg.rtd", ,"ContractData",C45, "Low",, "T") -> 225.89 | H45: =RTD("cqg.rtd", ,"ContractData",C45, "LastTradeToday",, "T") -> 226.91 | I45: =RTD("cqg.rtd", ,"ContractData",C45, "NetLastTradeToday",, "T") -> 1.95 | J45: =RTD("cqg.rtd", ,"ContractData",C45, "PerCentNetLastTrade",, "T")/100 -> 0.008668207681 | K45: =RTD("cqg.rtd", ,"ContractData", C45, "T_CVol",, "T") -> 1825768 | L45: 45 | M45: =RANK($J45,$J$1:J$73)+COUNTIF($J$1:J45,J45)-1 -> 9 | N45: S.US.MSFT | O45: S.US.MXIM | P45: =RTD("cqg.rtd", ,"ContractData",O45, "PerCentNetLastTrade",, "T")/100 -> 0.0004620538293 | Q45: https://finance.yahoo.com/quote/MXIM | S45: 0.0004620538293 | V45: =RTD("cqg.rtd", ,"ContractData",O45, "LongDescription",, "T") -> Maxim Integrated Products Inc | Y45: 0.0004620538293 | AA45: 1 | AB45: 1 | AD45: 0.0004620538293
C46: S.US.MSI | D46: =RTD("cqg.rtd", ,"ContractData",C46, "LongDescription",, "T") -> Motorola Solutions, Inc. | E46: =RTD("cqg.rtd", ,"ContractData",C46, "Open",, "T") -> 170.54 | F46: =RTD("cqg.rtd", ,"ContractData",C46, "High",, "T") -> 170.7 | G46: =RTD("cqg.rtd", ,"ContractData",C46, "Low",, "T") -> 170.04 | H46: =RTD("cqg.rtd", ,"ContractData",C46, "LastTradeToday",, "T") -> 170.56 | I46: =RTD("cqg.rtd", ,"ContractData",C46, "NetLastTradeToday",, "T") -> 1.15 | J46: =RTD("cqg.rtd", ,"ContractData",C46, "PerCentNetLastTrade",, "T")/100 -> 0.006788265156 | K46: =RTD("cqg.rtd", ,"ContractData", C46, "T_CVol",, "T") -> 14169 | L46: 46 | M46: =RANK($J46,$J$1:J$73)+COUNTIF($J$1:J46,J46)-1 -> 16 | N46: S.US.MSI | O46: S.US.APH | P46: =RTD("cqg.rtd", ,"ContractData",O46, "PerCentNetLastTrade",, "T")/100 -> 0.0003850893407 | Q46: https://finance.yahoo.com/quote/APH | S46: 0.0003850893407 | V46: =RTD("cqg.rtd", ,"ContractData",O46, "LongDescription",, "T") -> Amphenol | Y46: 0.0003850893407 | AA46: 1 | AB46: 1 | AD46: 0.0003850893407
C47: S.US.MU | D47: =RTD("cqg.rtd", ,"ContractData",C47, "LongDescription",, "T") -> Micron Technology Inc | E47: =RTD("cqg.rtd", ,"ContractData",C47, "Open",, "T") -> 71 | F47: =RTD("cqg.rtd", ,"ContractData",C47, "High",, "T") -> 71.4 | G47: =RTD("cqg.rtd", ,"ContractData",C47, "Low",, "T") -> 70.63 | H47: =RTD("cqg.rtd", ,"ContractData",C47, "LastTradeToday",, "T") -> 70.73 | I47: =RTD("cqg.rtd", ,"ContractData",C47, "NetLastTradeToday",, "T") -> 0.07 | J47: =RTD("cqg.rtd", ,"ContractData",C47, "PerCentNetLastTrade",, "T")/100 -> 0.0009906594962 | K47: =RTD("cqg.rtd", ,"ContractData", C47, "T_CVol",, "T") -> 761033 | L47: 47 | M47: =RANK($J47,$J$1:J$73)+COUNTIF($J$1:J47,J47)-1 -> 41 | N47: S.US.MU | O47: S.US.ADP | P47: =RTD("cqg.rtd", ,"ContractData",O47, "PerCentNetLastTrade",, "T")/100 -> 0.000339731612 | Q47: https://finance.yahoo.com/quote/ADP | S47: 0.000339731612 | V47: =RTD("cqg.rtd", ,"ContractData",O47, "LongDescription",, "T") -> Auto Data Processing Inc | Y47: 0.000339731612 | AA47: 1 | AB47: 1 | AD47: 0.000339731612
C48: S.US.MXIM | D48: =RTD("cqg.rtd", ,"ContractData",C48, "LongDescription",, "T") -> Maxim Integrated Products Inc | E48: =RTD("cqg.rtd", ,"ContractData",C48, "Open",, "T") -> 86.7 | F48: =RTD("cqg.rtd", ,"ContractData",C48, "High",, "T") -> 87.02 | G48: =RTD("cqg.rtd", ,"ContractData",C48, "Low",, "T") -> 86.57 | H48: =RTD("cqg.rtd", ,"ContractData",C48, "LastTradeToday",, "T") -> 86.61 | I48: =RTD("cqg.rtd", ,"ContractData",C48, "NetLastTradeToday",, "T") -> 0.04 | J48: =RTD("cqg.rtd", ,"ContractData",C48, "PerCentNetLastTrade",, "T")/100 -> 0.0004620538293 | K48: =RTD("cqg.rtd", ,"ContractData", C48, "T_CVol",, "T") -> 29079 | L48: 48 | M48: =RANK($J48,$J$1:J$73)+COUNTIF($J$1:J48,J48)-1 -> 45 | N48: S.US.MXIM | O48: S.US.NLOK | P48: =RTD("cqg.rtd", ,"ContractData",O48, "PerCentNetLastTrade",, "T")/100 -> 0 | Q48: https://finance.yahoo.com/quote/NLOK | S48: 0 | V48: =RTD("cqg.rtd", ,"ContractData",O48, "LongDescription",, "T") -> NortonLifeLock Inc. | Y48: 0 | AA48: 1 | AB48: 1 | AD48: 0
C49: S.US.NLOK | D49: =RTD("cqg.rtd", ,"ContractData",C49, "LongDescription",, "T") -> NortonLifeLock Inc. | E49: =RTD("cqg.rtd", ,"ContractData",C49, "Open",, "T") -> 20.9 | F49: =RTD("cqg.rtd", ,"ContractData",C49, "High",, "T") -> 21.09 | G49: =RTD("cqg.rtd", ,"ContractData",C49, "Low",, "T") -> 20.86 | H49: =RTD("cqg.rtd", ,"ContractData",C49, "LastTradeToday",, "T") -> 21.02 | I49: =RTD("cqg.rtd", ,"ContractData",C49, "NetLastTradeToday",, "T") -> 0 | J49: =RTD("cqg.rtd", ,"ContractData",C49, "PerCentNetLastTrade",, "T")/100 -> 0 | K49: =RTD("cqg.rtd", ,"ContractData", C49, "T_CVol",, "T") -> 195069 | L49: 49 | M49: =RANK($J49,$J$1:J$73)+COUNTIF($J$1:J49,J49)-1 -> 48 | N49: S.US.NLOK | O49: S.US.SWKS | P49: =RTD("cqg.rtd", ,"ContractData",O49, "PerCentNetLastTrade",, "T")/100 -> 0 | Q49: https://finance.yahoo.com/quote/SWKS | S49: 0 | V49: =RTD("cqg.rtd", ,"ContractData",O49, "LongDescription",, "T") -> Skyworks Solutions Inc | Y49: 0 | AA49: 1 | AB49: 1 | AD49: 0
C50: S.US.NOW | D50: =RTD("cqg.rtd", ,"ContractData",C50, "LongDescription",, "T") -> ServiceNow, Inc. | E50: =RTD("cqg.rtd", ,"ContractData",C50, "Open",, "T") -> 550.22 | F50: =RTD("cqg.rtd", ,"ContractData",C50, "High",, "T") -> 551.42 | G50: =RTD("cqg.rtd", ,"ContractData",C50, "Low",, "T") -> 547.25 | H50: =RTD("cqg.rtd", ,"ContractData",C50, "LastTradeToday",, "T") -> 550.74 | I50: =RTD("cqg.rtd", ,"ContractData",C50, "NetLastTradeToday",, "T") -> 7 | J50: =RTD("cqg.rtd", ,"ContractData",C50, "PerCentNetLastTrade",, "T")/100 -> 0.01287379998 | K50: =RTD("cqg.rtd", ,"ContractData", C50, "T_CVol",, "T") -> 57965 | L50: 50 | M50: =RANK($J50,$J$1:J$73)+COUNTIF($J$1:J50,J50)-1 -> 1 | N50: S.US.NOW | O50: S.US.TYL | P50: =RTD("cqg.rtd", ,"ContractData",O50, "PerCentNetLastTrade",, "T")/100 -> -0.0005787974903 | Q50: https://finance.yahoo.com/quote/TYL | T50: 0.0005787974903 | V50: =RTD("cqg.rtd", ,"ContractData",O50, "LongDescription",, "T") -> TYLER TECHNOLOGIES INC | Y50: -0.0005787974903 | AB50: 0 | AE50: 0.0005787974903 | AF50: -0.0005787974903
C51: S.US.NTAP | D51: =RTD("cqg.rtd", ,"ContractData",C51, "LongDescription",, "T") -> NetApp inc. | E51: =RTD("cqg.rtd", ,"ContractData",C51, "Open",, "T") -> 65.86 | F51: =RTD("cqg.rtd", ,"ContractData",C51, "High",, "T") -> 66.27 | G51: =RTD("cqg.rtd", ,"ContractData",C51, "Low",, "T") -> 65.28 | H51: =RTD("cqg.rtd", ,"ContractData",C51, "LastTradeToday",, "T") -> 65.6 | I51: =RTD("cqg.rtd", ,"ContractData",C51, "NetLastTradeToday",, "T") -> -0.3 | J51: =RTD("cqg.rtd", ,"ContractData",C51, "PerCentNetLastTrade",, "T")/100 -> -0.004552352049 | K51: =RTD("cqg.rtd", ,"ContractData", C51, "T_CVol",, "T") -> 65098 | L51: 51 | M51: =RANK($J51,$J$1:J$73)+COUNTIF($J$1:J51,J51)-1 -> 63 | N51: S.US.NTAP | O51: S.US.CRM | P51: =RTD("cqg.rtd", ,"ContractData",O51, "PerCentNetLastTrade",, "T")/100 -> -0.0008903133903 | Q51: https://finance.yahoo.com/quote/CRM | T51: 0.0008903133903 | V51: =RTD("cqg.rtd", ,"ContractData",O51, "LongDescription",, "T") -> Salesforce.com Inc | Y51: -0.0008903133903 | AB51: 0 | AE51: 0.0008903133903 | AF51: -0.0008903133903
C52: S.US.NVDA | D52: =RTD("cqg.rtd", ,"ContractData",C52, "LongDescription",, "T") -> NVIDIA Corp | E52: =RTD("cqg.rtd", ,"ContractData",C52, "Open",, "T") -> 517 | F52: =RTD("cqg.rtd", ,"ContractData",C52, "High",, "T") -> 521.56 | G52: =RTD("cqg.rtd", ,"ContractData",C52, "Low",, "T") -> 514.87 | H52: =RTD("cqg.rtd", ,"ContractData",C52, "LastTradeToday",, "T") -> 521.02 | I52: =RTD("cqg.rtd", ,"ContractData",C52, "NetLastTradeToday",, "T") -> 5.02 | J52: =RTD("cqg.rtd", ,"ContractData",C52, "PerCentNetLastTrade",, "T")/100 -> 0.009728682171 | K52: =RTD("cqg.rtd", ,"ContractData", C52, "T_CVol",, "T") -> 555352 | L52: 52 | M52: =RANK($J52,$J$1:J$73)+COUNTIF($J$1:J52,J52)-1 -> 7 | N52: S.US.NVDA | O52: S.US.IBM | P52: =RTD("cqg.rtd", ,"ContractData",O52, "PerCentNetLastTrade",, "T")/100 -> -0.0009613843935 | Q52: https://finance.yahoo.com/quote/IBM | T52: 0.0009613843935 | V52: =RTD("cqg.rtd", ,"ContractData",O52, "LongDescription",, "T") -> International Business Machines | Y52: -0.0009613843935 | AB52: 0 | AE52: 0.0009613843935 | AF52: -0.0009613843935
C53: S.US.ORCL | D53: =RTD("cqg.rtd", ,"ContractData",C53, "LongDescription",, "T") -> Oracle Corporation | E53: =RTD("cqg.rtd", ,"ContractData",C53, "Open",, "T") -> 65.25 | F53: =RTD("cqg.rtd", ,"ContractData",C53, "High",, "T") -> 65.25 | G53: =RTD("cqg.rtd", ,"ContractData",C53, "Low",, "T") -> 64.98 | H53: =RTD("cqg.rtd", ,"ContractData",C53, "LastTradeToday",, "T") -> 65.19 | I53: =RTD("cqg.rtd", ,"ContractData",C53, "NetLastTradeToday",, "T") -> 0.32 | J53: =RTD("cqg.rtd", ,"ContractData",C53, "PerCentNetLastTrade",, "T")/100 -> 0.004932942809 | K53: =RTD("cqg.rtd", ,"ContractData", C53, "T_CVol",, "T") -> 309074 | L53: 53 | M53: =RANK($J53,$J$1:J$73)+COUNTIF($J$1:J53,J53)-1 -> 23 | N53: S.US.ORCL | O53: S.US.GLW | P53: =RTD("cqg.rtd", ,"ContractData",O53, "PerCentNetLastTrade",, "T")/100 -> -0.001657916552 | Q53: https://finance.yahoo.com/quote/GLW | T53: 0.001657916552 | V53: =RTD("cqg.rtd", ,"ContractData",O53, "LongDescription",, "T") -> Corning Incorporated | Y53: -0.001657916552 | AB53: 0 | AE53: 0.001657916552 | AF53: -0.001657916552
C54: S.US.PAYC | D54: =RTD("cqg.rtd", ,"ContractData",C54, "LongDescription",, "T") -> Paycom Software, Inc. | E54: =RTD("cqg.rtd", ,"ContractData",C54, "Open",, "T") -> 464 | F54: =RTD("cqg.rtd", ,"ContractData",C54, "High",, "T") -> 464.65 | G54: =RTD("cqg.rtd", ,"ContractData",C54, "Low",, "T") -> 459.65 | H54: =RTD("cqg.rtd", ,"ContractData",C54, "LastTradeToday",, "T") -> 460.84 | I54: =RTD("cqg.rtd", ,"ContractData",C54, "NetLastTradeToday",, "T") -> -2.75 | J54: =RTD("cqg.rtd", ,"ContractData",C54, "PerCentNetLastTrade",, "T")/100 -> -0.005931965746 | K54: =RTD("cqg.rtd", ,"ContractData", C54, "T_CVol",, "T") -> 8568 | L54: 54 | M54: =RANK($J54,$J$1:J$73)+COUNTIF($J$1:J54,J54)-1 -> 65 | N54: S.US.PAYC | O54: S.US.TEL | P54: =RTD("cqg.rtd", ,"ContractData",O54, "PerCentNetLastTrade",, "T")/100 -> -0.001667778519 | Q54: https://finance.yahoo.com/quote/TEL | T54: 0.001667778519 | V54: =RTD("cqg.rtd", ,"ContractData",O54, "LongDescription",, "T") -> TE Connectivity Ltd. | Y54: -0.001667778519 | AB54: 0 | AE54: 0.001667778519 | AF54: -0.001667778519
C55: S.US.PAYX | D55: =RTD("cqg.rtd", ,"ContractData",C55, "LongDescription",, "T") -> Paychex Inc | E55: =RTD("cqg.rtd", ,"ContractData",C55, "Open",, "T") -> 94.99 | F55: =RTD("cqg.rtd", ,"ContractData",C55, "High",, "T") -> 94.99 | G55: =RTD("cqg.rtd", ,"ContractData",C55, "Low",, "T") -> 94.32 | H55: =RTD("cqg.rtd", ,"ContractData",C55, "LastTradeToday",, "T") -> 94.36 | I55: =RTD("cqg.rtd", ,"ContractData",C55, "NetLastTradeToday",, "T") -> 0.06 | J55: =RTD("cqg.rtd", ,"ContractData",C55, "PerCentNetLastTrade",, "T")/100 -> 0.0006362672322 | K55: =RTD("cqg.rtd", ,"ContractData", C55, "T_CVol",, "T") -> 44672 | L55: 55 | M55: =RANK($J55,$J$1:J$73)+COUNTIF($J$1:J55,J55)-1 -> 43 | N55: S.US.PAYX | O55: S.US.XRX | P55: =RTD("cqg.rtd", ,"ContractData",O55, "PerCentNetLastTrade",, "T")/100 -> -0.001718213058 | Q55: https://finance.yahoo.com/quote/XRX | T55: 0.001718213058 | V55: =RTD("cqg.rtd", ,"ContractData",O55, "LongDescription",, "T") -> Xerox Corp | Y55: -0.001718213058 | AB55: 0 | AE55: 0.001718213058 | AF55: -0.001718213058
C56: S.US.PYPL | D56: =RTD("cqg.rtd", ,"ContractData",C56, "LongDescription",, "T") -> PayPal Holdings, Inc. | E56: =RTD("cqg.rtd", ,"ContractData",C56, "Open",, "T") -> 236 | F56: =RTD("cqg.rtd", ,"ContractData",C56, "High",, "T") -> 236.25 | G56: =RTD("cqg.rtd", ,"ContractData",C56, "Low",, "T") -> 233.1 | H56: =RTD("cqg.rtd", ,"ContractData",C56, "LastTradeToday",, "T") -> 234.03 | I56: =RTD("cqg.rtd", ,"ContractData",C56, "NetLastTradeToday",, "T") -> -1.7 | J56: =RTD("cqg.rtd", ,"ContractData",C56, "PerCentNetLastTrade",, "T")/100 -> -0.007211640436 | K56: =RTD("cqg.rtd", ,"ContractData", C56, "T_CVol",, "T") -> 534992 | L56: 56 | M56: =RANK($J56,$J$1:J$73)+COUNTIF($J$1:J56,J56)-1 -> 66 | N56: S.US.PYPL | O56: S.US.HPQ | P56: =RTD("cqg.rtd", ,"ContractData",O56, "PerCentNetLastTrade",, "T")/100 -> -0.002472187886 | Q56: https://finance.yahoo.com/quote/HPQ | T56: 0.002472187886 | V56: =RTD("cqg.rtd", ,"ContractData",O56, "LongDescription",, "T") -> Hewlett-Packard Company | Y56: -0.002472187886 | AB56: 0 | AE56: 0.002472187886 | AF56: -0.002472187886
C57: S.US.QCOM | D57: =RTD("cqg.rtd", ,"ContractData",C57, "LongDescription",, "T") -> QUALCOMM Inc | E57: =RTD("cqg.rtd", ,"ContractData",C57, "Open",, "T") -> 148.97 | F57: =RTD("cqg.rtd", ,"ContractData",C57, "High",, "T") -> 148.97 | G57: =RTD("cqg.rtd", ,"ContractData",C57, "Low",, "T") -> 148.16 | H57: =RTD("cqg.rtd", ,"ContractData",C57, "LastTradeToday",, "T") -> 148.72 | I57: =RTD("cqg.rtd", ,"ContractData",C57, "NetLastTradeToday",, "T") -> 1.05 | J57: =RTD("cqg.rtd", ,"ContractData",C57, "PerCentNetLastTrade",, "T")/100 -> 0.007107080005 | K57: =RTD("cqg.rtd", ,"ContractData", C57, "T_CVol",, "T") -> 243332 | L57: 57 | M57: =RANK($J57,$J$1:J$73)+COUNTIF($J$1:J57,J57)-1 -> 14 | N57: S.US.QCOM | O57: S.US.HPE | P57: =RTD("cqg.rtd", ,"ContractData",O57, "PerCentNetLastTrade",, "T")/100 -> -0.002544529262 | Q57: https://finance.yahoo.com/quote/HPE | T57: 0.002544529262 | V57: =RTD("cqg.rtd", ,"ContractData",O57, "LongDescription",, "T") -> Hewlett Packard Enterprise Company | Y57: -0.002544529262 | AB57: 0 | AE57: 0.002544529262 | AF57: -0.002544529262
C58: S.US.QRVO | D58: =RTD("cqg.rtd", ,"ContractData",C58, "LongDescription",, "T") -> Qorvo | E58: =RTD("cqg.rtd", ,"ContractData",C58, "Open",, "T") -> 166.98 | F58: =RTD("cqg.rtd", ,"ContractData",C58, "High",, "T") -> 167.43 | G58: =RTD("cqg.rtd", ,"ContractData",C58, "Low",, "T") -> 164.73 | H58: =RTD("cqg.rtd", ,"ContractData",C58, "LastTradeToday",, "T") -> 165.21 | I58: =RTD("cqg.rtd", ,"ContractData",C58, "NetLastTradeToday",, "T") -> -1.23 | J58: =RTD("cqg.rtd", ,"ContractData",C58, "PerCentNetLastTrade",, "T")/100 -> -0.007390050469 | K58: =RTD("cqg.rtd", ,"ContractData", C58, "T_CVol",, "T") -> 93568 | L58: 58 | M58: =RANK($J58,$J$1:J$73)+COUNTIF($J$1:J58,J58)-1 -> 67 | N58: S.US.QRVO | O58: S.US.LDOS | P58: =RTD("cqg.rtd", ,"ContractData",O58, "PerCentNetLastTrade",, "T")/100 -> -0.002576827639 | Q58: https://finance.yahoo.com/quote/LDOS | T58: 0.002576827639 | V58: =RTD("cqg.rtd", ,"ContractData",O58, "LongDescription",, "T") -> Leidos Holdings, Inc. | Y58: -0.002576827639 | AB58: 0 | AE58: 0.002576827639 | AF58: -0.002576827639
C59: S.US.SNPS | D59: =RTD("cqg.rtd", ,"ContractData",C59, "LongDescription",, "T") -> Synopsis | E59: =RTD("cqg.rtd", ,"ContractData",C59, "Open",, "T") -> 257.77 | F59: =RTD("cqg.rtd", ,"ContractData",C59, "High",, "T") -> 258.34 | G59: =RTD("cqg.rtd", ,"ContractData",C59, "Low",, "T") -> 256.92 | H59: =RTD("cqg.rtd", ,"ContractData",C59, "LastTradeToday",, "T") -> 256.92 | I59: =RTD("cqg.rtd", ,"ContractData",C59, "NetLastTradeToday",, "T") -> 0.76 | J59: =RTD("cqg.rtd", ,"ContractData",C59, "PerCentNetLastTrade",, "T")/100 -> 0.00296689569 | K59: =RTD("cqg.rtd", ,"ContractData", C59, "T_CVol",, "T") -> 37337 | L59: 59 | M59: =RANK($J59,$J$1:J$73)+COUNTIF($J$1:J59,J59)-1 -> 30 | N59: S.US.SNPS | O59: S.US.LRCX | P59: =RTD("cqg.rtd", ,"ContractData",O59, "PerCentNetLastTrade",, "T")/100 -> -0.003192606595 | Q59: https://finance.yahoo.com/quote/LRCX | T59: 0.003192606595 | V59: =RTD("cqg.rtd", ,"ContractData",O59, "LongDescription",, "T") -> LAM Research Corporation | Y59: -0.003192606595 | AB59: 0 | AE59: 0.003192606595 | AF59: -0.003192606595
C60: S.US.STX | D60: =RTD("cqg.rtd", ,"ContractData",C60, "LongDescription",, "T") -> Seagate Technology | E60: =RTD("cqg.rtd", ,"ContractData",C60, "Open",, "T") -> 62.17 | F60: =RTD("cqg.rtd", ,"ContractData",C60, "High",, "T") -> 62.3 | G60: =RTD("cqg.rtd", ,"ContractData",C60, "Low",, "T") -> 61.71 | H60: =RTD("cqg.rtd", ,"ContractData",C60, "LastTradeToday",, "T") -> 61.76 | I60: =RTD("cqg.rtd", ,"ContractData",C60, "NetLastTradeToday",, "T") -> -0.76 | J60: =RTD("cqg.rtd", ,"ContractData",C60, "PerCentNetLastTrade",, "T")/100 -> -0.01215611004 | K60: =RTD("cqg.rtd", ,"ContractData", C60, "T_CVol",, "T") -> 166263 | L60: 60 | M60: =RANK($J60,$J$1:J$73)+COUNTIF($J$1:J60,J60)-1 -> 71 | N60: S.US.STX | O60: S.US.AMAT | P60: =RTD("cqg.rtd", ,"ContractData",O60, "PerCentNetLastTrade",, "T")/100 -> -0.003534817957 | Q60: https://finance.yahoo.com/quote/AMAT | T60: 0.003534817957 | V60: =RTD("cqg.rtd", ,"ContractData",O60, "LongDescription",, "T") -> Applied Materials Inc | Y60: -0.003534817957 | AB60: 0 | AE60: 0.003534817957 | AF60: -0.003534817957
C61: S.US.SWKS | D61: =RTD("cqg.rtd", ,"ContractData",C61, "LongDescription",, "T") -> Skyworks Solutions Inc | E61: =RTD("cqg.rtd", ,"ContractData",C61, "Open",, "T") -> 153.8 | F61: =RTD("cqg.rtd", ,"ContractData",C61, "High",, "T") -> 154.83 | G61: =RTD("cqg.rtd", ,"ContractData",C61, "Low",, "T") -> 153.04 | H61: =RTD("cqg.rtd", ,"ContractData",C61, "LastTradeToday",, "T") -> 153.22 | I61: =RTD("cqg.rtd", ,"ContractData",C61, "NetLastTradeToday",, "T") -> 0 | J61: =RTD("cqg.rtd", ,"ContractData",C61, "PerCentNetLastTrade",, "T")/100 -> 0 | K61: =RTD("cqg.rtd", ,"ContractData", C61, "T_CVol",, "T") -> 94438 | L61: 61 | M61: =RANK($J61,$J$1:J$73)+COUNTIF($J$1:J61,J61)-1 -> 49 | N61: S.US.SWKS | O61: S.US.KLAC | P61: =RTD("cqg.rtd", ,"ContractData",O61, "PerCentNetLastTrade",, "T")/100 -> -0.004154049227 | Q61: https://finance.yahoo.com/quote/KLAC | T61: 0.004154049227 | V61: =RTD("cqg.rtd", ,"ContractData",O61, "LongDescription",, "T") -> KLA Corporation | Y61: -0.004154049227 | AB61: 0 | AE61: 0.004154049227 | AF61: -0.004154049227
C62: S.US.TEL | D62: =RTD("cqg.rtd", ,"ContractData",C62, "LongDescription",, "T") -> TE Connectivity Ltd. | E62: =RTD("cqg.rtd", ,"ContractData",C62, "Open",, "T") -> 120.08 | F62: =RTD("cqg.rtd", ,"ContractData",C62, "High",, "T") -> 120.35 | G62: =RTD("cqg.rtd", ,"ContractData",C62, "Low",, "T") -> 119.33 | H62: =RTD("cqg.rtd", ,"ContractData",C62, "LastTradeToday",, "T") -> 119.72 | I62: =RTD("cqg.rtd", ,"ContractData",C62, "NetLastTradeToday",, "T") -> -0.2 | J62: =RTD("cqg.rtd", ,"ContractData",C62, "PerCentNetLastTrade",, "T")/100 -> -0.001667778519 | K62: =RTD("cqg.rtd", ,"ContractData", C62, "T_CVol",, "T") -> 28062 | L62: 62 | M62: =RANK($J62,$J$1:J$73)+COUNTIF($J$1:J62,J62)-1 -> 54 | N62: S.US.TEL | O62: S.US.CTSH | P62: =RTD("cqg.rtd", ,"ContractData",O62, "PerCentNetLastTrade",, "T")/100 -> -0.00430133956 | Q62: https://finance.yahoo.com/quote/CTSH | T62: 0.00430133956 | V62: =RTD("cqg.rtd", ,"ContractData",O62, "LongDescription",, "T") -> Cognizant Tech Solutions Corp | Y62: -0.00430133956 | AB62: 0 | AE62: 0.00430133956 | AF62: -0.00430133956
C63: S.US.TER | D63: =RTD("cqg.rtd", ,"ContractData",C63, "LongDescription",, "T") -> Teradyne Inc | E63: =RTD("cqg.rtd", ,"ContractData",C63, "Open",, "T") -> 118.92 | F63: =RTD("cqg.rtd", ,"ContractData",C63, "High",, "T") -> 119.06 | G63: =RTD("cqg.rtd", ,"ContractData",C63, "Low",, "T") -> 117.91 | H63: =RTD("cqg.rtd", ,"ContractData",C63, "LastTradeToday",, "T") -> 117.92 | I63: =RTD("cqg.rtd", ,"ContractData",C63, "NetLastTradeToday",, "T") -> 0.19 | J63: =RTD("cqg.rtd", ,"ContractData",C63, "PerCentNetLastTrade",, "T")/100 -> 0.001613862227 | K63: =RTD("cqg.rtd", ,"ContractData", C63, "T_CVol",, "T") -> 42959 | L63: 63 | M63: =RANK($J63,$J$1:J$73)+COUNTIF($J$1:J63,J63)-1 -> 38 | N63: S.US.TER | O63: S.US.NTAP | P63: =RTD("cqg.rtd", ,"ContractData",O63, "PerCentNetLastTrade",, "T")/100 -> -0.004552352049 | Q63: https://finance.yahoo.com/quote/NTAP | T63: 0.004552352049 | V63: =RTD("cqg.rtd", ,"ContractData",O63, "LongDescription",, "T") -> NetApp inc. | Y63: -0.004552352049 | AB63: 0 | AE63: 0.004552352049 | AF63: -0.004552352049
C64: S.US.TXN | D64: =RTD("cqg.rtd", ,"ContractData",C64, "LongDescription",, "T") -> Texas Instruments Inc | E64: =RTD("cqg.rtd", ,"ContractData",C64, "Open",, "T") -> 161.96 | F64: =RTD("cqg.rtd", ,"ContractData",C64, "High",, "T") -> 162.42 | G64: =RTD("cqg.rtd", ,"ContractData",C64, "Low",, "T") -> 161.66 | H64: =RTD("cqg.rtd", ,"ContractData",C64, "LastTradeToday",, "T") -> 162.04 | I64: =RTD("cqg.rtd", ,"ContractData",C64, "NetLastTradeToday",, "T") -> 0.57 | J64: =RTD("cqg.rtd", ,"ContractData",C64, "PerCentNetLastTrade",, "T")/100 -> 0.003530067505 | K64: =RTD("cqg.rtd", ,"ContractData", C64, "T_CVol",, "T") -> 72219 | L64: 64 | M64: =RANK($J64,$J$1:J$73)+COUNTIF($J$1:J64,J64)-1 -> 26 | N64: S.US.TXN | O64: S.US.KEYS | P64: =RTD("cqg.rtd", ,"ContractData",O64, "PerCentNetLastTrade",, "T")/100 -> -0.005082688515 | Q64: https://finance.yahoo.com/quote/KEYS | T64: 0.005082688515 | V64: =RTD("cqg.rtd", ,"ContractData",O64, "LongDescription",, "T") -> Keysight Technologies Inc. | Y64: -0.005082688515 | AB64: 0 | AE64: 0.005082688515 | AF64: -0.005082688515
C65: S.US.TYL | D65: =RTD("cqg.rtd", ,"ContractData",C65, "LongDescription",, "T") -> TYLER TECHNOLOGIES INC | E65: =RTD("cqg.rtd", ,"ContractData",C65, "Open",, "T") -> 434.64 | F65: =RTD("cqg.rtd", ,"ContractData",C65, "High",, "T") -> 434.83 | G65: =RTD("cqg.rtd", ,"ContractData",C65, "Low",, "T") -> 431.55 | H65: =RTD("cqg.rtd", ,"ContractData",C65, "LastTradeToday",, "T") -> 431.68 | I65: =RTD("cqg.rtd", ,"ContractData",C65, "NetLastTradeToday",, "T") -> -0.25 | J65: =RTD("cqg.rtd", ,"ContractData",C65, "PerCentNetLastTrade",, "T")/100 -> -0.0005787974903 | K65: =RTD("cqg.rtd", ,"ContractData", C65, "T_CVol",, "T") -> 4909 | L65: 65 | M65: =RANK($J65,$J$1:J$73)+COUNTIF($J$1:J65,J65)-1 -> 50 | N65: =C65 -> S.US.TYL | O65: S.US.PAYC | P65: =RTD("cqg.rtd", ,"ContractData",O65, "PerCentNetLastTrade",, "T")/100 -> -0.005931965746 | Q65: https://finance.yahoo.com/quote/PAYC | T65: 0.005931965746 | V65: =RTD("cqg.rtd", ,"ContractData",O65, "LongDescription",, "T") -> Paycom Software, Inc. | Y65: -0.005931965746 | AB65: =IFERROR(AA65,0) -> 0 | AE65: 0.005931965746 | AF65: -0.005931965746
C66: S.US.V | D66: =RTD("cqg.rtd", ,"ContractData",C66, "LongDescription",, "T") -> Visa Inc. | E66: =RTD("cqg.rtd", ,"ContractData",C66, "Open",, "T") -> 214.61 | F66: =RTD("cqg.rtd", ,"ContractData",C66, "High",, "T") -> 214.89 | G66: =RTD("cqg.rtd", ,"ContractData",C66, "Low",, "T") -> 213.54 | H66: =RTD("cqg.rtd", ,"ContractData",C66, "LastTradeToday",, "T") -> 214.7 | I66: =RTD("cqg.rtd", ,"ContractData",C66, "NetLastTradeToday",, "T") -> 2.07 | J66: =RTD("cqg.rtd", ,"ContractData",C66, "PerCentNetLastTrade",, "T")/100 -> 0.009735220806 | K66: =RTD("cqg.rtd", ,"ContractData", C66, "T_CVol",, "T") -> 427978 | L66: 66 | M66: =RANK($J66,$J$1:J$73)+COUNTIF($J$1:J66,J66)-1 -> 6 | N66: S.US.V | O66: =VLOOKUP($L66,$M$1:$N$73,2,FALSE) -> S.US.PYPL | P66: =RTD("cqg.rtd", ,"ContractData",O66, "PerCentNetLastTrade",, "T")/100 -> -0.007211640436 | Q66: ="https://finance.yahoo.com/quote/"&RIGHT(O66,(LEN(O66)-5)) -> https://finance.yahoo.com/quote/PYPL | S66: =IF(P66>=0,P66,NA()) ->  | T66: =IF(P66>=0,NA(),-1*P66) -> 0.007211640436 | V66: =RTD("cqg.rtd", ,"ContractData",O66, "LongDescription",, "T") -> PayPal Holdings, Inc. | Y66: =IFERROR(S66,P66) -> -0.007211640436 | AA66: =IF(S66="NA()",0,1) ->  | AB66: 0 | AD66: =IFERROR(S66,"") ->  | AE66: =IFERROR(T66,"") -> 0.007211640436 | AF66: =IF(AE66="","",Y66) -> -0.007211640436
C67: S.US.VNT | D67: =RTD("cqg.rtd", ,"ContractData",C67, "LongDescription",, "T") -> Vontier Corporation | E67: =RTD("cqg.rtd", ,"ContractData",C67, "Open",, "T") -> 33.17 | F67: =RTD("cqg.rtd", ,"ContractData",C67, "High",, "T") -> 33.59 | G67: =RTD("cqg.rtd", ,"ContractData",C67, "Low",, "T") -> 33 | H67: =RTD("cqg.rtd", ,"ContractData",C67, "LastTradeToday",, "T") -> 33.03 | I67: =RTD("cqg.rtd", ,"ContractData",C67, "NetLastTradeToday",, "T") -> -0.35 | J67: =RTD("cqg.rtd", ,"ContractData",C67, "PerCentNetLastTrade",, "T")/100 -> -0.01048532055 | K67: =RTD("cqg.rtd", ,"ContractData", C67, "T_CVol",, "T") -> 182411 | L67: =L66+1 -> 67 | M67: =RANK($J67,$J$1:J$73)+COUNTIF($J$1:J67,J67)-1 -> 70 | N67: S.US.VNT | O67: S.US.QRVO | P67: =RTD("cqg.rtd", ,"ContractData",O67, "PerCentNetLastTrade",, "T")/100 -> -0.007390050469 | Q67: https://finance.yahoo.com/quote/QRVO | S67: =IF(P67>=0,P67,NA()) ->  | T67: =IF(P67>=0,NA(),-1*P67) -> 0.007390050469 | V67: =RTD("cqg.rtd", ,"ContractData",O67, "LongDescription",, "T") -> Qorvo | Y67: -0.007390050469 | AB67: 0 | AE67: 0.007390050469 | AF67: -0.007390050469
C68: S.US.VRSN | D68: =RTD("cqg.rtd", ,"ContractData",C68, "LongDescription",, "T") -> Verisign Inc | E68: =RTD("cqg.rtd", ,"ContractData",C68, "Open",, "T") -> 218.14 | F68: =RTD("cqg.rtd", ,"ContractData",C68, "High",, "T") -> 218.86 | G68: =RTD("cqg.rtd", ,"ContractData",C68, "Low",, "T") -> 217.1 | H68: =RTD("cqg.rtd", ,"ContractData",C68, "LastTradeToday",, "T") -> 218.35 | I68: =RTD("cqg.rtd", ,"ContractData",C68, "NetLastTradeToday",, "T") -> 1.55 | J68: =RTD("cqg.rtd", ,"ContractData",C68, "PerCentNetLastTrade",, "T")/100 -> 0.007149446494 | K68: =RTD("cqg.rtd", ,"ContractData", C68, "T_CVol",, "T") -> 16148 | L68: 68 | M68: =RANK($J68,$J$1:J$73)+COUNTIF($J$1:J68,J68)-1 -> 13 | N68: S.US.VRSN | O68: S.US.ZBRA | P68: =RTD("cqg.rtd", ,"ContractData",O68, "PerCentNetLastTrade",, "T")/100 -> -0.0076844664 | Q68: https://finance.yahoo.com/quote/ZBRA | T68: 0.0076844664 | V68: =RTD("cqg.rtd", ,"ContractData",O68, "LongDescription",, "T") -> Zebra Technologies Corp | Y68: -0.0076844664 | AA68: =IF(S68="NA()",0,1) ->  | AB68: =IFERROR(AA68,0) -> 0 | AE68: 0.0076844664 | AF68: -0.0076844664
C69: S.US.WDC | D69: =RTD("cqg.rtd", ,"ContractData",C69, "LongDescription",, "T") -> Western Digital Corporation | E69: =RTD("cqg.rtd", ,"ContractData",C69, "Open",, "T") -> 50.64 | F69: =RTD("cqg.rtd", ,"ContractData",C69, "High",, "T") -> 50.64 | G69: =RTD("cqg.rtd", ,"ContractData",C69, "Low",, "T") -> 49.58 | H69: =RTD("cqg.rtd", ,"ContractData",C69, "LastTradeToday",, "T") -> 49.64 | I69: =RTD("cqg.rtd", ,"ContractData",C69, "NetLastTradeToday",, "T") -> -0.42 | J69: =RTD("cqg.rtd", ,"ContractData",C69, "PerCentNetLastTrade",, "T")/100 -> -0.008389932082 | K69: =RTD("cqg.rtd", ,"ContractData", C69, "T_CVol",, "T") -> 228724 | L69: 69 | M69: =RANK($J69,$J$1:J$73)+COUNTIF($J$1:J69,J69)-1 -> 69 | N69: S.US.WDC | O69: S.US.WDC | P69: =RTD("cqg.rtd", ,"ContractData",O69, "PerCentNetLastTrade",, "T")/100 -> -0.008389932082 | Q69: ="https://finance.yahoo.com/quote/"&RIGHT(O69,(LEN(O69)-5)) -> https://finance.yahoo.com/quote/WDC | S69: =IF(P69>=0,P69,NA()) ->  | T69: =IF(P69>=0,NA(),-1*P69) -> 0.008389932082 | V69: =RTD("cqg.rtd", ,"ContractData",O69, "LongDescription",, "T") -> Western Digital Corporation | Y69: =IFERROR(S69,P69) -> -0.008389932082 | AA69: =IF(S69="NA()",0,1) ->  | AB69: =IFERROR(AA69,0) -> 0 | AD69: =IFERROR(S69,"") ->  | AE69: =IFERROR(T69,"") -> 0.008389932082 | AF69: =IF(AE69="","",Y69) -> -0.008389932082
C70: S.US.WU | D70: =RTD("cqg.rtd", ,"ContractData",C70, "LongDescription",, "T") -> The Western Union Company | E70: =RTD("cqg.rtd", ,"ContractData",C70, "Open",, "T") -> 21.78 | F70: =RTD("cqg.rtd", ,"ContractData",C70, "High",, "T") -> 21.82 | G70: =RTD("cqg.rtd", ,"ContractData",C70, "Low",, "T") -> 21.61 | H70: =RTD("cqg.rtd", ,"ContractData",C70, "LastTradeToday",, "T") -> 21.77 | I70: =RTD("cqg.rtd", ,"ContractData",C70, "NetLastTradeToday",, "T") -> 0.06 | J70: =RTD("cqg.rtd", ,"ContractData",C70, "PerCentNetLastTrade",, "T")/100 -> 0.002763703363 | K70: =RTD("cqg.rtd", ,"ContractData", C70, "T_CVol",, "T") -> 111890 | L70: 70 | M70: =RANK($J70,$J$1:J$73)+COUNTIF($J$1:J70,J70)-1 -> 32 | N70: S.US.WU | O70: S.US.VNT | P70: =RTD("cqg.rtd", ,"ContractData",O70, "PerCentNetLastTrade",, "T")/100 -> -0.01048532055 | Q70: https://finance.yahoo.com/quote/VNT | T70: 0.01048532055 | V70: =RTD("cqg.rtd", ,"ContractData",O70, "LongDescription",, "T") -> Vontier Corporation | Y70: -0.01048532055 | AB70: 0 | AE70: 0.01048532055 | AF70: -0.01048532055
C71: S.US.XLNX | D71: =RTD("cqg.rtd", ,"ContractData",C71, "LongDescription",, "T") -> Xilinx Inc | E71: =RTD("cqg.rtd", ,"ContractData",C71, "Open",, "T") -> 141.95 | F71: =RTD("cqg.rtd", ,"ContractData",C71, "High",, "T") -> 143.1 | G71: =RTD("cqg.rtd", ,"ContractData",C71, "Low",, "T") -> 141 | H71: =RTD("cqg.rtd", ,"ContractData",C71, "LastTradeToday",, "T") -> 142.84 | I71: =RTD("cqg.rtd", ,"ContractData",C71, "NetLastTradeToday",, "T") -> 1.32 | J71: =RTD("cqg.rtd", ,"ContractData",C71, "PerCentNetLastTrade",, "T")/100 -> 0.009327303561 | K71: =RTD("cqg.rtd", ,"ContractData", C71, "T_CVol",, "T") -> 115671 | L71: 71 | M71: =RANK($J71,$J$1:J$73)+COUNTIF($J$1:J71,J71)-1 -> 8 | N71: S.US.XLNX | O71: S.US.STX | P71: =RTD("cqg.rtd", ,"ContractData",O71, "PerCentNetLastTrade",, "T")/100 -> -0.01215611004 | Q71: https://finance.yahoo.com/quote/STX | T71: 0.01215611004 | V71: =RTD("cqg.rtd", ,"ContractData",O71, "LongDescription",, "T") -> Seagate Technology | Y71: -0.01215611004 | AB71: 0 | AE71: 0.01215611004 | AF71: -0.01215611004
C72: S.US.XRX | D72: =RTD("cqg.rtd", ,"ContractData",C72, "LongDescription",, "T") -> Xerox Corp | E72: =RTD("cqg.rtd", ,"ContractData",C72, "Open",, "T") -> 23.35 | F72: =RTD("cqg.rtd", ,"ContractData",C72, "High",, "T") -> 23.43 | G72: =RTD("cqg.rtd", ,"ContractData",C72, "Low",, "T") -> 23.12 | H72: =RTD("cqg.rtd", ,"ContractData",C72, "LastTradeToday",, "T") -> 23.24 | I72: =RTD("cqg.rtd", ,"ContractData",C72, "NetLastTradeToday",, "T") -> -0.04 | J72: =RTD("cqg.rtd", ,"ContractData",C72, "PerCentNetLastTrade",, "T")/100 -> -0.001718213058 | K72: =RTD("cqg.rtd", ,"ContractData", C72, "T_CVol",, "T") -> 115055 | L72: 72 | M72: =RANK($J72,$J$1:J$73)+COUNTIF($J$1:J72,J72)-1 -> 55 | N72: S.US.XRX | O72: S.US.FLIR | P72: =RTD("cqg.rtd", ,"ContractData",O72, "PerCentNetLastTrade",, "T")/100 -> -0.01232354918 | Q72: https://finance.yahoo.com/quote/FLIR | T72: 0.01232354918 | V72: =RTD("cqg.rtd", ,"ContractData",O72, "LongDescription",, "T") -> FLIR Systems Inc | Y72: -0.01232354918 | AB72: 0 | AE72: 0.01232354918 | AF72: -0.01232354918
C73: S.US.ZBRA | D73: =RTD("cqg.rtd", ,"ContractData",C73, "LongDescription",, "T") -> Zebra Technologies Corp | E73: =RTD("cqg.rtd", ,"ContractData",C73, "Open",, "T") -> 384.69 | F73: =RTD("cqg.rtd", ,"ContractData",C73, "High",, "T") -> 385.41 | G73: =RTD("cqg.rtd", ,"ContractData",C73, "Low",, "T") -> 379.65 | H73: =RTD("cqg.rtd", ,"ContractData",C73, "LastTradeToday",, "T") -> 379.65 | I73: =RTD("cqg.rtd", ,"ContractData",C73, "NetLastTradeToday",, "T") -> -2.94 | J73: =RTD("cqg.rtd", ,"ContractData",C73, "PerCentNetLastTrade",, "T")/100 -> -0.0076844664 | K73: =RTD("cqg.rtd", ,"ContractData", C73, "T_CVol",, "T") -> 10266 | L73: 73 | M73: =RANK($J73,$J$1:J$73)+COUNTIF($J$1:J73,J73)-1 -> 68 | N73: S.US.ZBRA | O73: S.US.DXC | P73: =RTD("cqg.rtd", ,"ContractData",O73, "PerCentNetLastTrade",, "T")/100 -> -0.01579384871 | Q73: https://finance.yahoo.com/quote/DXC | T73: 0.01579384871 | V73: =RTD("cqg.rtd", ,"ContractData",O73, "LongDescription",, "T") -> DXC Technology Company | Y73: -0.01579384871 | AB73: 0 | AE73: 0.01579384871 | AF73: -0.01579384871
AB74: =SUM(AB1:AB73)/73 -> 0.6712328767
